{"text_format":"1","workbook":"xlsx","n_sheets":5,"sheets":["Title","Problem","ImportedListLimit","AlternateSolution","Wrap Up"],"not_rendered":{"charts":0,"images":7,"macros":0,"external_links":0,"defined_names":0,"comments":0,"pivot_tables":0},"unopened":[],"bounds":{"document_bytes":16777216,"sheet_cells":100000,"rows_first":2000,"rows_last":500,"rows_between":2000,"halvings":0,"cell_chars":16384,"cell_head_chars":4096},"cells_cut":0,"cells_raw":0,"read":"whole","date_system":"1900"}

{"sheet":"Title","index":0,"n_rows":25,"n_cols":13,"rows_kept":25,"cut":false,"hidden":false,"merged":[]}
[]
[]
[]
[]
[]
[]
[null,null,null,null,null,null,null,null,null,null,null,null,2098]
[]
[]
[]
[]
[]
[]
[]
[]
[]
[]
[]
[]
[]
[]
[]
[]
[]
["Image credit: getbrett / Pixabay"]

{"sheet":"Problem","index":1,"n_rows":256,"n_cols":40,"rows_kept":256,"cut":false,"hidden":false,"merged":[]}
["Name","# of Wins","Margin",null,null,null,null,null,null,null,null,"Proper Sequence","Workaround",null,null,null,null,null,null,null,null,null,null,"Sequence",null,null,null,null,null,null,null,null,null,{"$f":"ROW()^2","v":1},{"$f":"LEN(AH1)","v":1},{"$f":"+AI1","v":1},null,null,"1",{"$f":"SUM(LEN(AM1:AM254))","v":1128}]
[{"$f":"CHAR(ROW(A65))","v":"A"},8,4,null,null,null,null,null,null,null,null,0,"0",null,{"$f":"SUM(L2:L11)","v":5},{"$f":"SUM(M2:M7)","v":0},null,null,null,null,null,null,null,0,"0",null,null,1,null,null,"ABCDEFGHIJ 1",{"$f":"SUM(LEN(AE2:AE141))","v":1852},null,{"$f":"ROW()^2","v":4},{"$f":"LEN(AH2)","v":1},{"$f":"+AI2+AJ1","v":2},null,null,"4"]
["B",9,6,null,null,null,null,null,null,null,null,1,"1",null,null,null,null,null,null,null,null,null,null,1,"1",null,null,3,null,null,"ABCDEFGHIJ 2",null,null,9,1,{"$f":"+AI3+AJ2","v":3},null,null,"9"]
["C",9,6,null,null,null,null,null,null,null,null,-1,"-1",null,null,null,null,null,null,null,null,null,null,-1,"-1",null,null,5,null,null,"ABCDEFGHIJ 3",null,null,16,2,5,null,null,"16"]
["D",9,6,null,null,null,null,null,null,null,null,2,"2",null,null,null,null,null,null,null,null,null,null,2,"2",null,null,7,null,null,"ABCDEFGHIJ 4",null,null,25,2,7,null,null,"25"]
["E",9,6,null,null,null,null,null,null,null,null,-2,"-2",null,null,null,null,null,null,null,null,null,null,-2,"-2",null,null,9,null,null,"ABCDEFGHIJ 5",null,null,36,2,9,null,null,"36"]
["F",9,-6,null,null,null,null,null,null,null,null,3,"3",null,null,null,null,null,null,null,null,null,null,3,"3",null,null,2,null,null,"ABCDEFGHIJ 6",null,null,49,2,11,null,null,"49"]
["G",7,8,null,null,null,null,null,null,null,null,-3,"-3",null,null,null,null,null,null,null,null,null,null,-3,"-3",null,null,4,null,null,"ABCDEFGHIJ 7",null,null,64,2,13,null,null,"64"]
["H",8,-11,null,null,null,null,null,null,null,null,4,"4",null,null,null,null,null,null,null,null,null,null,4,"4",null,null,6,null,null,"ABCDEFGHIJ 8",null,null,81,2,15,null,null,"81"]
["I",8,23,null,null,null,null,null,null,null,null,-4,"-4",null,null,null,null,null,null,null,null,null,null,-4,"-4",null,null,8,null,null,"ABCDEFGHIJ 9",null,null,100,3,18,null,null,"100"]
["J",8,24,null,null,null,null,null,null,null,null,5,"5",null,null,null,null,null,null,null,null,null,null,5,"5",null,null,10,null,null,"ABCDEFGHIJ 10",null,null,121,3,21,null,null,"121"]
["K",9,-27,null,null,null,null,null,null,null,null,-5,"-5",null,null,null,null,null,null,null,null,null,null,-5,"-5",null,null,null,null,null,"ABCDEFGHIJ 11",null,null,144,3,24,null,null,"144"]
["L",8,29,null,null,null,null,null,null,null,null,6,"6",null,null,null,null,null,null,null,null,null,null,6,"6",null,null,null,null,null,"ABCDEFGHIJ 12",null,null,169,3,27,null,null,"169"]
["M",7,-32,null,null,null,null,null,null,null,null,-6,"-6",null,null,null,null,null,null,null,null,null,null,-6,"-6",null,null,null,null,null,"ABCDEFGHIJ 13",null,null,196,3,30,null,null,"196"]
["N",7,-40,null,null,null,null,null,null,null,null,7,"7",null,null,null,null,null,null,null,null,null,null,7,"7",null,null,null,null,null,"ABCDEFGHIJ 14",null,null,225,3,33,null,null,"225"]
["O",8,42,null,null,null,null,null,null,null,null,-7,"-7",null,null,null,null,null,null,null,null,null,null,-7,"-7",null,null,null,null,null,"ABCDEFGHIJ 15",null,null,256,3,36,null,null,"256"]
["P",9,43,null,null,null,null,null,null,null,null,8,"8",null,null,null,null,null,null,null,null,null,null,8,"8",null,null,null,null,null,"ABCDEFGHIJ 16",null,null,289,3,39,null,null,"289"]
["Q",7,48,null,null,null,null,null,null,null,null,-8,"-8",null,null,null,null,null,null,null,null,null,null,-8,"-8",null,null,null,null,null,"ABCDEFGHIJ 17",null,null,324,3,42,null,null,"324"]
["R",7,-54,null,null,null,null,null,null,null,null,9,"9",null,null,null,null,null,null,null,null,null,null,9,"9",null,null,null,null,null,"ABCDEFGHIJ 18",null,null,361,3,45,null,null,"361"]
["S",9,-56,null,null,null,null,null,null,null,null,-9,"-9",null,null,null,null,null,null,null,null,null,null,-9,"-9",null,null,null,null,null,"ABCDEFGHIJ 19",null,null,400,3,48,null,null,"400"]
["T",7,62,null,null,null,null,null,null,null,null,10,"10",null,null,null,null,null,null,null,null,null,null,10,"10",null,null,null,null,null,"ABCDEFGHIJ 20",null,null,441,3,51,null,null,"441"]
["U",8,-63,null,null,null,null,null,null,null,null,-10,"-10",null,null,null,null,null,null,null,null,null,null,-10,"-10",null,null,null,null,null,"ABCDEFGHIJ 21",null,null,484,3,54,null,null,"484"]
["V",9,65,null,null,null,null,null,null,null,null,11,"11",null,null,null,null,null,null,null,null,null,null,11,"11",null,null,null,null,null,"ABCDEFGHIJ 22",null,null,529,3,57,null,null,"529"]
["W",7,-67,null,null,null,null,null,null,null,null,-11,"-11",null,null,null,null,null,null,null,null,null,null,-11,"-11",null,null,null,null,null,"ABCDEFGHIJ 23",null,null,576,3,60,null,null,"576"]
["X",8,83,null,null,null,null,null,null,null,null,12,"12",null,null,null,null,null,null,null,null,null,null,12,"12",null,null,null,null,null,"ABCDEFGHIJ 24",null,null,625,3,63,null,null,"625"]
["Y",8,85,null,null,null,null,null,null,null,null,-12,"-12",null,null,null,null,null,null,null,null,null,null,-12,"-12",null,null,null,null,null,"ABCDEFGHIJ 25",null,null,676,3,66,null,null,"676"]
["Z",9,87,null,null,null,null,null,null,null,null,13,"13",null,null,null,null,null,null,null,null,null,null,13,"13",null,null,null,null,null,"ABCDEFGHIJ 26",null,null,729,3,69,null,null,"729"]
["[",9,92,null,null,null,null,null,null,null,null,-13,"-13",null,null,null,null,null,null,null,null,null,null,-13,"-13",null,null,null,null,null,"ABCDEFGHIJ 27",null,null,784,3,72,null,null,"784"]
[null,null,null,null,null,null,null,null,null,null,null,14,"14",null,null,null,null,null,null,null,null,null,null,14,"14",null,null,null,null,null,"ABCDEFGHIJ 28",null,null,841,3,75,null,null,"841"]
[null,null,null,null,null,null,null,null,null,null,null,-14,"-14",null,null,null,null,null,null,null,null,null,null,-14,"-14",null,null,null,null,null,"ABCDEFGHIJ 29",null,null,900,3,78,null,null,"900"]
[null,null,null,null,null,null,null,null,null,null,null,15,"15",null,null,null,null,null,null,null,null,null,null,15,"15",null,null,null,null,null,"ABCDEFGHIJ 30",null,null,961,3,81,null,null,"961"]
[null,null,null,null,null,null,null,null,null,null,null,-15,"-15",null,null,null,null,null,null,null,null,null,null,-15,"-15",null,null,null,null,null,"ABCDEFGHIJ 31",null,null,1024,4,85,null,null,"1024"]
[null,null,null,null,null,null,null,null,null,null,null,16,"16",null,null,null,null,null,null,null,null,null,null,16,"16",null,null,null,null,null,"ABCDEFGHIJ 32",null,null,1089,4,89,null,null,"1089"]
[null,null,null,null,null,null,null,null,null,null,null,-16,"-16",null,null,null,null,null,null,null,null,null,null,-16,"-16",null,null,null,null,null,"ABCDEFGHIJ 33",null,null,1156,4,93,null,null,"1156"]
[null,null,null,null,null,null,null,null,null,null,null,17,"17",null,null,null,null,null,null,null,null,null,null,17,"17",null,null,null,null,null,"ABCDEFGHIJ 34",null,null,1225,4,97,null,null,"1225"]
[null,null,null,null,null,null,null,null,null,null,null,-17,"-17",null,null,null,null,null,null,null,null,null,null,-17,"-17",null,null,null,null,null,"ABCDEFGHIJ 35",null,null,1296,4,101,null,null,"1296"]
[null,null,null,null,null,null,null,null,null,null,null,18,"18",null,null,null,null,null,null,null,null,null,null,18,"18",null,null,null,null,null,"ABCDEFGHIJ 36",null,null,1369,4,105,null,null,"1369"]
[null,null,null,null,null,null,null,null,null,null,null,-18,"-18",null,null,null,null,null,null,null,null,null,null,-18,"-18",null,null,null,null,null,"ABCDEFGHIJ 37",null,null,1444,4,109,null,null,"1444"]
[null,null,null,null,null,null,null,null,null,null,null,19,"19",null,null,null,null,null,null,null,null,null,null,19,"19",null,null,null,null,null,"ABCDEFGHIJ 38",null,null,1521,4,113,null,null,"1521"]
[null,null,null,null,null,null,null,null,null,null,null,-19,"-19",null,null,null,null,null,null,null,null,null,null,-19,"-19",null,null,null,null,null,"ABCDEFGHIJ 39",null,null,1600,4,117,null,null,"1600"]
[null,null,null,null,null,null,null,null,null,null,null,20,"20",null,null,null,null,null,null,null,null,null,null,20,"20",null,null,null,null,null,"ABCDEFGHIJ 40",null,null,1681,4,121,null,null,"1681"]
[null,null,null,null,null,null,null,null,null,null,null,-20,"-20",null,null,null,null,null,null,null,null,null,null,-20,"-20",null,null,null,null,null,"ABCDEFGHIJ 41",null,null,1764,4,125,null,null,"1764"]
[null,null,null,null,null,null,null,null,null,null,null,21,"21",null,null,null,null,null,null,null,null,null,null,21,"21",null,null,null,null,null,"ABCDEFGHIJ 42",null,null,1849,4,129,null,null,"1849"]
[null,null,null,null,null,null,null,null,null,null,null,-21,"-21",null,null,null,null,null,null,null,null,null,null,-21,"-21",null,null,null,null,null,"ABCDEFGHIJ 43",null,null,1936,4,133,null,null,"1936"]
[null,null,null,null,null,null,null,null,null,null,null,22,"22",null,null,null,null,null,null,null,null,null,null,22,"22",null,null,null,null,null,"ABCDEFGHIJ 44",null,null,2025,4,137,null,null,"2025"]
[null,null,null,null,null,null,null,null,null,null,null,-22,"-22",null,null,null,null,null,null,null,null,null,null,-22,"-22",null,null,null,null,null,"ABCDEFGHIJ 45",null,null,2116,4,141,null,null,"2116"]
[null,null,null,null,null,null,null,null,null,null,null,23,"23",null,null,null,null,null,null,null,null,null,null,23,"23",null,null,null,null,null,"ABCDEFGHIJ 46",null,null,2209,4,145,null,null,"2209"]
[null,null,null,null,null,null,null,null,null,null,null,-23,"-23",null,null,null,null,null,null,null,null,null,null,-23,"-23",null,null,null,null,null,"ABCDEFGHIJ 47",null,null,2304,4,149,null,null,"2304"]
[null,null,null,null,null,null,null,null,null,null,null,24,"24",null,null,null,null,null,null,null,null,null,null,24,"24",null,null,null,null,null,"ABCDEFGHIJ 48",null,null,2401,4,153,null,null,"2401"]
[null,null,null,null,null,null,null,null,null,null,null,-24,"-24",null,null,null,null,null,null,null,null,null,null,-24,"-24",null,null,null,null,null,"ABCDEFGHIJ 49",null,null,2500,4,157,null,null,"2500"]
[null,null,null,null,null,null,null,null,null,null,null,25,"25",null,null,null,null,null,null,null,null,null,null,25,"25",null,null,null,null,null,"ABCDEFGHIJ 50",null,null,2601,4,161,null,null,"2601"]
[null,null,null,null,null,null,null,null,null,null,null,-25,"-25",null,null,null,null,null,null,null,null,null,null,-25,"-25",null,null,null,null,null,"ABCDEFGHIJ 51",null,null,2704,4,165,null,null,"2704"]
[null,null,null,null,null,null,null,null,null,null,null,26,"26",null,null,null,null,null,null,null,null,null,null,26,"26",null,null,null,null,null,"ABCDEFGHIJ 52",null,null,2809,4,169,null,null,"2809"]
[null,null,null,null,null,null,null,null,null,null,null,-26,"-26",null,null,null,null,null,null,null,null,null,null,-26,"-26",null,null,null,null,null,"ABCDEFGHIJ 53",null,null,2916,4,173,null,null,"2916"]
[null,null,null,null,null,null,null,null,null,null,null,27,"27",null,null,null,null,null,null,null,null,null,null,27,"27",null,null,null,null,null,"ABCDEFGHIJ 54",null,null,3025,4,177,null,null,"3025"]
[null,null,null,null,null,null,null,null,null,null,null,-27,"-27",null,null,null,null,null,null,null,null,null,null,-27,"-27",null,null,null,null,null,"ABCDEFGHIJ 55",null,null,3136,4,181,null,null,"3136"]
[null,null,null,null,null,null,null,null,null,null,null,28,"28",null,null,null,null,null,null,null,null,null,null,28,"28",null,null,null,null,null,"ABCDEFGHIJ 56",null,null,3249,4,185,null,null,"3249"]
[null,null,null,null,null,null,null,null,null,null,null,-28,"-28",null,null,null,null,null,null,null,null,null,null,-28,"-28",null,null,null,null,null,"ABCDEFGHIJ 57",null,null,3364,4,189,null,null,"3364"]
[null,null,null,null,null,null,null,null,null,null,null,29,"29",null,null,null,null,null,null,null,null,null,null,29,"29",null,null,null,null,null,"ABCDEFGHIJ 58",null,null,3481,4,193,null,null,"3481"]
[null,null,null,null,null,null,null,null,null,null,null,-29,"-29",null,null,null,null,null,null,null,null,null,null,-29,"-29",null,null,null,null,null,"ABCDEFGHIJ 59",null,null,3600,4,197,null,null,"3600"]
[null,null,null,null,null,null,null,null,null,null,null,30,"30",null,null,null,null,null,null,null,null,null,null,30,"30",null,null,null,null,null,"ABCDEFGHIJ 60",null,null,3721,4,201,null,null,"3721"]
[null,null,null,null,null,null,null,null,null,null,null,-30,"-30",null,null,null,null,null,null,null,null,null,null,-30,"-30",null,null,null,null,null,"ABCDEFGHIJ 61",null,null,3844,4,205,null,null,"3844"]
[null,null,null,null,null,null,null,null,null,null,null,31,"31",null,null,null,null,null,null,null,null,null,null,31,"31",null,null,null,null,null,"ABCDEFGHIJ 62",null,null,3969,4,209,null,null,"3969"]
[null,null,null,null,null,null,null,null,null,null,null,-31,"-31",null,null,null,null,null,null,null,null,null,null,-31,"-31",null,null,null,null,null,"ABCDEFGHIJ 63",null,null,4096,4,213,null,null,"4096"]
[null,null,null,null,null,null,null,null,null,null,null,32,"32",null,null,null,null,null,null,null,null,null,null,32,"32",null,null,null,null,null,"ABCDEFGHIJ 64",null,null,4225,4,217,null,null,"4225"]
[null,null,null,null,null,null,null,null,null,null,null,-32,"-32",null,null,null,null,null,null,null,null,null,null,-32,"-32",null,null,null,null,null,"ABCDEFGHIJ 65",null,null,4356,4,{"$f":"+AI66+AJ65","v":221},null,null,"4356"]
[null,null,null,null,null,null,null,null,null,null,null,33,"33",null,null,null,null,null,null,null,null,null,null,33,"33",null,null,null,null,null,"ABCDEFGHIJ 66",null,null,{"$f":"ROW()^2","v":4489},{"$f":"LEN(AH67)","v":4},225,null,null,"4489"]
[null,null,null,null,null,null,null,null,null,null,null,-33,"-33",null,null,null,null,null,null,null,null,null,null,-33,"-33",null,null,null,null,null,"ABCDEFGHIJ 67",null,null,4624,4,229,null,null,"4624"]
[null,null,null,null,null,null,null,null,null,null,null,34,"34",null,null,null,null,null,null,null,null,null,null,34,"34",null,null,null,null,null,"ABCDEFGHIJ 68",null,null,4761,4,233,null,null,"4761"]
[null,null,null,null,null,null,null,null,null,null,null,-34,"-34",null,null,null,null,null,null,null,null,null,null,-34,"-34",null,null,null,null,null,"ABCDEFGHIJ 69",null,null,4900,4,237,null,null,"4900"]
[null,null,null,null,null,null,null,null,null,null,null,35,"35",null,null,null,null,null,null,null,null,null,null,35,"35",null,null,null,null,null,"ABCDEFGHIJ 70",null,null,5041,4,241,null,null,"5041"]
[null,null,null,null,null,null,null,null,null,null,null,-35,"-35",null,null,null,null,null,null,null,null,null,null,-35,"-35",null,null,null,null,null,"ABCDEFGHIJ 71",null,null,5184,4,245,null,null,"5184"]
[null,null,null,null,null,null,null,null,null,null,null,36,"36",null,null,null,null,null,null,null,null,null,null,36,"36",null,null,null,null,null,"ABCDEFGHIJ 72",null,null,5329,4,249,null,null,"5329"]
[null,null,null,null,null,null,null,null,null,null,null,-36,"-36",null,null,null,null,null,null,null,null,null,null,-36,"-36",null,null,null,null,null,"ABCDEFGHIJ 73",null,null,5476,4,253,null,null,"5476"]
[null,null,null,null,null,null,null,null,null,null,null,37,"37",null,null,null,null,null,null,null,null,null,null,37,"37",null,null,null,null,null,"ABCDEFGHIJ 74",null,null,5625,4,257,null,null,"5625"]
[null,null,null,null,null,null,null,null,null,null,null,-37,"-37",null,null,null,null,null,null,null,null,null,null,-37,"-37",null,null,null,null,null,"ABCDEFGHIJ 75",null,null,5776,4,261,null,null,"5776"]
[null,null,null,null,null,null,null,null,null,null,null,38,"38",null,null,null,null,null,null,null,null,null,null,38,"38",null,null,null,null,null,"ABCDEFGHIJ 76",null,null,5929,4,265,null,null,"5929"]
[null,null,null,null,null,null,null,null,null,null,null,-38,"-38",null,null,null,null,null,null,null,null,null,null,-38,"-38",null,null,null,null,null,"ABCDEFGHIJ 77",null,null,6084,4,269,null,null,"6084"]
[null,null,null,null,null,null,null,null,null,null,null,39,"39",null,null,null,null,null,null,null,null,null,null,39,"39",null,null,null,null,null,"ABCDEFGHIJ 78",null,null,6241,4,273,null,null,"6241"]
[null,null,null,null,null,null,null,null,null,null,null,-39,"-39",null,null,null,null,null,null,null,null,null,null,-39,"-39",null,null,null,null,null,"ABCDEFGHIJ 79",null,null,6400,4,277,null,null,"6400"]
[null,null,null,null,null,null,null,null,null,null,null,40,"40",null,null,null,null,null,null,null,null,null,null,40,"40",null,null,null,null,null,"ABCDEFGHIJ 80",null,null,6561,4,281,null,null,"6561"]
[null,null,null,null,null,null,null,null,null,null,null,-40,"-40",null,null,null,null,null,null,null,null,null,null,-40,"-40",null,null,null,null,null,"ABCDEFGHIJ 81",null,null,6724,4,285,null,null,"6724"]
[null,null,null,null,null,null,null,null,null,null,null,41,"41",null,null,null,null,null,null,null,null,null,null,41,"41",null,null,null,null,null,"ABCDEFGHIJ 82",null,null,6889,4,289,null,null,"6889"]
[null,null,null,null,null,null,null,null,null,null,null,-41,"-41",null,null,null,null,null,null,null,null,null,null,-41,"-41",null,null,null,null,null,"ABCDEFGHIJ 83",null,null,7056,4,293,null,null,"7056"]
[null,null,null,null,null,null,null,null,null,null,null,42,"42",null,null,null,null,null,null,null,null,null,null,42,"42",null,null,null,null,null,"ABCDEFGHIJ 84",null,null,7225,4,297,null,null,"7225"]
[null,null,null,null,null,null,null,null,null,null,null,-42,"-42",null,null,null,null,null,null,null,null,null,null,-42,"-42",null,null,null,null,null,"ABCDEFGHIJ 85",null,null,7396,4,301,null,null,"7396"]
[null,null,null,null,null,null,null,null,null,null,null,43,"43",null,null,null,null,null,null,null,null,null,null,43,"43",null,null,null,null,null,"ABCDEFGHIJ 86",null,null,7569,4,305,null,null,"7569"]
[null,null,null,null,null,null,null,null,null,null,null,-43,"-43",null,null,null,null,null,null,null,null,null,null,-43,"-43",null,null,null,null,null,"ABCDEFGHIJ 87",null,null,7744,4,309,null,null,"7744"]
[null,null,null,null,null,null,null,null,null,null,null,44,"44",null,null,null,null,null,null,null,null,null,null,44,"44",null,null,null,null,null,"ABCDEFGHIJ 88",null,null,null,null,null,null,null,"7921"]
[null,null,null,null,null,null,null,null,null,null,null,-44,"-44",null,null,null,null,null,null,null,null,null,null,-44,"-44",null,null,null,null,null,"ABCDEFGHIJ 89",null,1764,234,{"$f":"+AG90+AH90","v":1998},null,null,null,"8100"]
[null,null,null,null,null,null,null,null,null,null,null,45,"45",null,null,null,null,null,null,null,null,null,null,45,"45",null,null,null,null,null,"ABCDEFGHIJ 90",null,1852,140,{"$f":"+AG91+AH91","v":1992},null,null,null,"8281"]
[null,null,null,null,null,null,null,null,null,null,null,-45,"-45",null,null,null,null,null,null,null,null,null,null,-45,"-45",null,null,null,null,null,"ABCDEFGHIJ 91",null,null,null,null,null,null,null,"8464"]
[null,null,null,null,null,null,null,null,null,null,null,46,"46",null,null,null,null,null,null,null,null,null,null,46,"46",null,null,null,null,null,"ABCDEFGHIJ 92",null,null,null,null,null,null,null,"8649"]
[null,null,null,null,null,null,null,null,null,null,null,-46,"-46",null,null,null,null,null,null,null,null,null,null,-46,"-46",null,null,null,null,null,"ABCDEFGHIJ 93",null,null,null,null,null,null,null,"8836"]
[null,null,null,null,null,null,null,null,null,null,null,47,"47",null,null,null,null,null,null,null,null,null,null,47,"47",null,null,null,null,null,"ABCDEFGHIJ 94",null,null,null,null,null,null,null,"9025"]
[null,null,null,null,null,null,null,null,null,null,null,-47,"-47",null,null,null,null,null,null,null,null,null,null,-47,"-47",null,null,null,null,null,"ABCDEFGHIJ 95",null,null,null,null,null,null,null,"9216"]
[null,null,null,null,null,null,null,null,null,null,null,48,"48",null,null,null,null,null,null,null,null,null,null,48,"48",null,null,null,null,null,"ABCDEFGHIJ 96",null,null,null,null,null,null,null,"9409"]
[null,null,null,null,null,null,null,null,null,null,null,-48,"-48",null,null,null,null,null,null,null,null,null,null,-48,"-48",null,null,null,null,null,"ABCDEFGHIJ 97",null,null,null,null,null,null,null,"9604"]
[null,null,null,null,null,null,null,null,null,null,null,49,"49",null,null,null,null,null,null,null,null,null,null,49,"49",null,null,null,null,null,"ABCDEFGHIJ 98",null,null,null,null,null,null,null,"9801"]
[null,null,null,null,null,null,null,null,null,null,null,-49,"-49",null,null,null,null,null,null,null,null,null,null,-49,"-49",null,null,null,null,null,"ABCDEFGHIJ 99",null,null,null,null,null,null,null,"10000"]
[null,null,null,null,null,null,null,null,null,null,null,50,"50",null,null,null,null,null,null,null,null,null,null,50,"50",null,null,null,null,null,"ABCDEFGHIJ 100",null,null,null,null,null,null,null,"10201"]
[null,null,null,null,null,null,null,null,null,null,null,-50,"-50",null,null,null,null,null,null,null,null,null,null,-50,"-50",null,null,null,null,null,"ABCDEFGHIJ 101",null,null,null,null,null,null,null,"10404"]
[null,null,null,null,null,null,null,null,null,null,null,51,"51",null,null,null,null,null,null,null,null,null,null,51,"51",null,null,null,null,null,"ABCDEFGHIJ 102",null,null,null,null,null,null,null,"10609"]
[null,null,null,null,null,null,null,null,null,null,null,-51,"-51",null,null,null,null,null,null,null,null,null,null,-51,"-51",null,null,null,null,null,"ABCDEFGHIJ 103",null,null,null,null,null,null,null,"10816"]
[null,null,null,null,null,null,null,null,null,null,null,52,"52",null,null,null,null,null,null,null,null,null,null,52,"52",null,null,null,null,null,"ABCDEFGHIJ 104",null,null,null,null,null,null,null,"11025"]
[null,null,null,null,null,null,null,null,null,null,null,-52,"-52",null,null,null,null,null,null,null,null,null,null,-52,"-52",null,null,null,null,null,"ABCDEFGHIJ 105",null,null,null,null,null,null,null,"11236"]
[null,null,null,null,null,null,null,null,null,null,null,53,"53",null,null,null,null,null,null,null,null,null,null,53,"53",null,null,null,null,null,"ABCDEFGHIJ 106",null,null,null,null,null,null,null,"11449"]
[null,null,null,null,null,null,null,null,null,null,null,-53,"-53",null,null,null,null,null,null,null,null,null,null,-53,"-53",null,null,null,null,null,"ABCDEFGHIJ 107",null,null,null,null,null,null,null,"11664"]
[null,null,null,null,null,null,null,null,null,null,null,54,"54",null,null,null,null,null,null,null,null,null,null,54,"54",null,null,null,null,null,"ABCDEFGHIJ 108",null,null,null,null,null,null,null,"11881"]
[null,null,null,null,null,null,null,null,null,null,null,-54,"-54",null,null,null,null,null,null,null,null,null,null,-54,"-54",null,null,null,null,null,"ABCDEFGHIJ 109",null,null,null,null,null,null,null,"12100"]
[null,null,null,null,null,null,null,null,null,null,null,55,"55",null,null,null,null,null,null,null,null,null,null,55,"55",null,null,null,null,null,"ABCDEFGHIJ 110",null,null,null,null,null,null,null,"12321"]
[null,null,null,null,null,null,null,null,null,null,null,-55,"-55",null,null,null,null,null,null,null,null,null,null,-55,"-55",null,null,null,null,null,"ABCDEFGHIJ 111",null,null,null,null,null,null,null,"12544"]
[null,null,null,null,null,null,null,null,null,null,null,56,"56",null,null,null,null,null,null,null,null,null,null,56,"56",null,null,null,null,null,"ABCDEFGHIJ 112",null,null,null,null,null,null,null,"12769"]
[null,null,null,null,null,null,null,null,null,null,null,-56,"-56",null,null,null,null,null,null,null,null,null,null,-56,"-56",null,null,null,null,null,"ABCDEFGHIJ 113",null,null,null,null,null,null,null,"12996"]
[null,null,null,null,null,null,null,null,null,null,null,57,"57",null,null,null,null,null,null,null,null,null,null,57,"57",null,null,null,null,null,"ABCDEFGHIJ 114",null,null,null,null,null,null,null,"13225"]
[null,null,null,null,null,null,null,null,null,null,null,-57,"-57",null,null,null,null,null,null,null,null,null,null,-57,"-57",null,null,null,null,null,"ABCDEFGHIJ 115",null,null,null,null,null,null,null,"13456"]
[null,null,null,null,null,null,null,null,null,null,null,58,"58",null,null,null,null,null,null,null,null,null,null,58,"58",null,null,null,null,null,"ABCDEFGHIJ 116",null,null,null,null,null,null,null,"13689"]
[null,null,null,null,null,null,null,null,null,null,null,-58,"-58",null,null,null,null,null,null,null,null,null,null,-58,"-58",null,null,null,null,null,"ABCDEFGHIJ 117",null,null,null,null,null,null,null,"13924"]
[null,null,null,null,null,null,null,null,null,null,null,59,"59",null,null,null,null,null,null,null,null,null,null,59,"59",null,null,null,null,null,"ABCDEFGHIJ 118",null,null,null,null,null,null,null,"14161"]
[null,null,null,null,null,null,null,null,null,null,null,-59,"-59",null,null,null,null,null,null,null,null,null,null,-59,"-59",null,null,null,null,null,"ABCDEFGHIJ 119",null,null,null,null,null,null,null,"14400"]
[null,null,null,null,null,null,null,null,null,null,null,60,"60",null,null,null,null,null,null,null,null,null,null,60,"60",null,null,null,null,null,"ABCDEFGHIJ 120",null,null,null,null,null,null,null,"14641"]
[null,null,null,null,null,null,null,null,null,null,null,-60,"-60",null,null,null,null,null,null,null,null,null,null,-60,"-60",null,null,null,null,null,"ABCDEFGHIJ 121",null,null,null,null,null,null,null,"14884"]
[null,null,null,null,null,null,null,null,null,null,null,61,"61",null,null,null,null,null,null,null,null,null,null,61,"61",null,null,null,null,null,"ABCDEFGHIJ 122",null,null,null,null,null,null,null,"15129"]
[null,null,null,null,null,null,null,null,null,null,null,-61,"-61",null,null,null,null,null,null,null,null,null,null,-61,"-61",null,null,null,null,null,"ABCDEFGHIJ 123",null,null,null,null,null,null,null,"15376"]
[null,null,null,null,null,null,null,null,null,null,null,62,"62",null,null,null,null,null,null,null,null,null,null,62,"62",null,null,null,null,null,"ABCDEFGHIJ 124",null,null,null,null,null,null,null,"15625"]
[null,null,null,null,null,null,null,null,null,null,null,-62,"-62",null,null,null,null,null,null,null,null,null,null,-62,"-62",null,null,null,null,null,"ABCDEFGHIJ 125",null,null,null,null,null,null,null,"15876"]
[null,null,null,null,null,null,null,null,null,null,null,63,"63",null,null,null,null,null,null,null,null,null,null,63,"63",null,null,null,null,null,"ABCDEFGHIJ 126",null,null,null,null,null,null,null,"16129"]
[null,null,null,null,null,null,null,null,null,null,null,-63,"-63",null,null,null,null,null,null,null,null,null,null,-63,"-63",null,null,null,null,null,"ABCDEFGHIJ 127",null,null,null,null,null,null,null,"16384"]
[null,null,null,null,null,null,null,null,null,null,null,64,"64",null,null,null,null,null,null,null,null,null,null,64,"64",null,null,null,null,null,"ABCDEFGHIJ 128",null,null,null,null,null,null,null,"16641"]
[null,null,null,null,null,null,null,null,null,null,null,-64,"-64",null,null,null,null,null,null,null,null,null,null,-64,"-64",null,null,null,null,null,"ABCDEFGHIJ 129",null,null,null,null,null,null,null,"16900"]
[null,null,null,null,null,null,null,null,null,null,null,65,"65",null,null,null,null,null,null,null,null,null,null,65,"65",null,null,null,null,null,"ABCDEFGHIJ 130",null,null,null,null,null,null,null,"17161"]
[null,null,null,null,null,null,null,null,null,null,null,-65,"-65",null,null,null,null,null,null,null,null,null,null,-65,"-65",null,null,null,null,null,"ABCDEFGHIJ 131",null,null,null,null,null,null,null,"17424"]
[null,null,null,null,null,null,null,null,null,null,null,66,"66",null,null,null,null,null,null,null,null,null,null,66,"66",null,null,null,null,null,"ABCDEFGHIJ 132",null,null,null,null,null,null,null,"17689"]
[null,null,null,null,null,null,null,null,null,null,null,-66,"-66",null,null,null,null,null,null,null,null,null,null,-66,"-66",null,null,null,null,null,"ABCDEFGHIJ 133",null,null,null,null,null,null,null,"17956"]
[null,null,null,null,null,null,null,null,null,null,null,67,"67",null,null,null,null,null,null,null,null,null,null,67,"67",null,null,null,null,null,"ABCDEFGHIJ 134",null,null,null,null,null,null,null,"18225"]
[null,null,null,null,null,null,null,null,null,null,null,-67,"-67",null,null,null,null,null,null,null,null,null,null,-67,"-67",null,null,null,null,null,"ABCDEFGHIJ 135",null,null,null,null,null,null,null,"18496"]
[null,null,null,null,null,null,null,null,null,null,null,68,"68",null,null,null,null,null,null,null,null,null,null,68,"68",null,null,null,null,null,"ABCDEFGHIJ 136",null,null,null,null,null,null,null,"18769"]
[null,null,null,null,null,null,null,null,null,null,null,-68,"-68",null,null,null,null,null,null,null,null,null,null,-68,"-68",null,null,null,null,null,"ABCDEFGHIJ 137",null,null,null,null,null,null,null,"19044"]
[null,null,null,null,null,null,null,null,null,null,null,69,"69",null,null,null,null,null,null,null,null,null,null,69,"69",null,null,null,null,null,"ABCDEFGHIJ 138",null,null,null,null,null,null,null,"19321"]
[null,null,null,null,null,null,null,null,null,null,null,-69,"-69",null,null,null,null,null,null,null,null,null,null,-69,"-69",null,null,null,null,null,"ABCDEFGHIJ 139",null,null,null,null,null,null,null,"19600"]
[null,null,null,null,null,null,null,null,null,null,null,70,"70",null,null,null,null,null,null,null,null,null,null,70,"70",null,null,null,null,null,"ABCDEFGHIJ 140",null,null,null,null,null,null,null,"19881"]
[null,null,null,null,null,null,null,null,null,null,null,-70,"-70",null,null,null,null,null,null,null,null,null,null,-70,"-70",null,null,null,null,null,"ABCDEFGHIJ 141",null,null,null,null,null,null,null,"20164"]
[null,null,null,null,null,null,null,null,null,null,null,71,"71",null,null,null,null,null,null,null,null,null,null,71,"71",null,null,null,null,null,"ABCDEFGHIJ 142",null,null,null,null,null,null,null,"20449"]
[null,null,null,null,null,null,null,null,null,null,null,-71,"-71",null,null,null,null,null,null,null,null,null,null,-71,"-71",null,null,null,null,null,"ABCDEFGHIJ 143",null,null,null,null,null,null,null,"20736"]
[null,null,null,null,null,null,null,null,null,null,null,72,"72",null,null,null,null,null,null,null,null,null,null,72,"72",null,null,null,null,null,"ABCDEFGHIJ 144",null,null,null,null,null,null,null,"21025"]
[null,null,null,null,null,null,null,null,null,null,null,-72,"-72",null,null,null,null,null,null,null,null,null,null,-72,"-72",null,null,null,null,null,"ABCDEFGHIJ 145",null,null,null,null,null,null,null,"21316"]
[null,null,null,null,null,null,null,null,null,null,null,73,"73",null,null,null,null,null,null,null,null,null,null,73,"73",null,null,null,null,null,"ABCDEFGHIJ 146",null,null,null,null,null,null,null,"21609"]
[null,null,null,null,null,null,null,null,null,null,null,-73,"-73",null,null,null,null,null,null,null,null,null,null,-73,"-73",null,null,null,null,null,"ABCDEFGHIJ 147",null,null,null,null,null,null,null,"21904"]
[null,null,null,null,null,null,null,null,null,null,null,74,"74",null,null,null,null,null,null,null,null,null,null,74,"74",null,null,null,null,null,"ABCDEFGHIJ 148",null,null,null,null,null,null,null,"22201"]
[null,null,null,null,null,null,null,null,null,null,null,-74,"-74",null,null,null,null,null,null,null,null,null,null,-74,"-74",null,null,null,null,null,"ABCDEFGHIJ 149",null,null,null,null,null,null,null,"22500"]
[null,null,null,null,null,null,null,null,null,null,null,75,"75",null,null,null,null,null,null,null,null,null,null,75,"75",null,null,null,null,null,"ABCDEFGHIJ 150",null,null,null,null,null,null,null,"22801"]
[null,null,null,null,null,null,null,null,null,null,null,-75,"-75",null,null,null,null,null,null,null,null,null,null,-75,"-75",null,null,null,null,null,"ABCDEFGHIJ 151",null,null,null,null,null,null,null,"23104"]
[null,null,null,null,null,null,null,null,null,null,null,76,"76",null,null,null,null,null,null,null,null,null,null,76,"76",null,null,null,null,null,"ABCDEFGHIJ 152",null,null,null,null,null,null,null,"23409"]
[null,null,null,null,null,null,null,null,null,null,null,-76,"-76",null,null,null,null,null,null,null,null,null,null,-76,"-76",null,null,null,null,null,"ABCDEFGHIJ 153",null,null,null,null,null,null,null,"23716"]
[null,null,null,null,null,null,null,null,null,null,null,77,"77",null,null,null,null,null,null,null,null,null,null,77,"77",null,null,null,null,null,"ABCDEFGHIJ 154",null,null,null,null,null,null,null,"24025"]
[null,null,null,null,null,null,null,null,null,null,null,-77,"-77",null,null,null,null,null,null,null,null,null,null,-77,"-77",null,null,null,null,null,"ABCDEFGHIJ 155",null,null,null,null,null,null,null,"24336"]
[null,null,null,null,null,null,null,null,null,null,null,78,"78",null,null,null,null,null,null,null,null,null,null,78,"78",null,null,null,null,null,"ABCDEFGHIJ 156",null,null,null,null,null,null,null,"24649"]
[null,null,null,null,null,null,null,null,null,null,null,-78,"-78",null,null,null,null,null,null,null,null,null,null,-78,"-78",null,null,null,null,null,"ABCDEFGHIJ 157",null,null,null,null,null,null,null,"24964"]
[null,null,null,null,null,null,null,null,null,null,null,79,"79",null,null,null,null,null,null,null,null,null,null,79,"79",null,null,null,null,null,"ABCDEFGHIJ 158",null,null,null,null,null,null,null,"25281"]
[null,null,null,null,null,null,null,null,null,null,null,-79,"-79",null,null,null,null,null,null,null,null,null,null,-79,"-79",null,null,null,null,null,"ABCDEFGHIJ 159",null,null,null,null,null,null,null,"25600"]
[null,null,null,null,null,null,null,null,null,null,null,80,"80",null,null,null,null,null,null,null,null,null,null,80,"80",null,null,null,null,null,"ABCDEFGHIJ 160",null,null,null,null,null,null,null,"25921"]
[null,null,null,null,null,null,null,null,null,null,null,-80,"-80",null,null,null,null,null,null,null,null,null,null,-80,"-80",null,null,null,null,null,"ABCDEFGHIJ 161",null,null,null,null,null,null,null,"26244"]
[null,null,null,null,null,null,null,null,null,null,null,81,"81",null,null,null,null,null,null,null,null,null,null,81,"81",null,null,null,null,null,"ABCDEFGHIJ 162",null,null,null,null,null,null,null,"26569"]
[null,null,null,null,null,null,null,null,null,null,null,-81,"-81",null,null,null,null,null,null,null,null,null,null,-81,"-81",null,null,null,null,null,"ABCDEFGHIJ 163",null,null,null,null,null,null,null,"26896"]
[null,null,null,null,null,null,null,null,null,null,null,82,"82",null,null,null,null,null,null,null,null,null,null,82,"82",null,null,null,null,null,"ABCDEFGHIJ 164",null,null,null,null,null,null,null,"27225"]
[null,null,null,null,null,null,null,null,null,null,null,-82,"-82",null,null,null,null,null,null,null,null,null,null,-82,"-82",null,null,null,null,null,"ABCDEFGHIJ 165",null,null,null,null,null,null,null,"27556"]
[null,null,null,null,null,null,null,null,null,null,null,83,"83",null,null,null,null,null,null,null,null,null,null,83,"83",null,null,null,null,null,"ABCDEFGHIJ 166",null,null,null,null,null,null,null,"27889"]
[null,null,null,null,null,null,null,null,null,null,null,-83,"-83",null,null,null,null,null,null,null,null,null,null,-83,"-83",null,null,null,null,null,"ABCDEFGHIJ 167",null,null,null,null,null,null,null,"28224"]
[null,null,null,null,null,null,null,null,null,null,null,84,"84",null,null,null,null,null,null,null,null,null,null,84,"84",null,null,null,null,null,"ABCDEFGHIJ 168",null,null,null,null,null,null,null,"28561"]
[null,null,null,null,null,null,null,null,null,null,null,-84,"-84",null,null,null,null,null,null,null,null,null,null,-84,"-84",null,null,null,null,null,"ABCDEFGHIJ 169",null,null,null,null,null,null,null,"28900"]
[null,null,null,null,null,null,null,null,null,null,null,85,"85",null,null,null,null,null,null,null,null,null,null,85,"85",null,null,null,null,null,"ABCDEFGHIJ 170",null,null,null,null,null,null,null,"29241"]
[null,null,null,null,null,null,null,null,null,null,null,-85,"-85",null,null,null,null,null,null,null,null,null,null,-85,"-85",null,null,null,null,null,"ABCDEFGHIJ 171",null,null,null,null,null,null,null,"29584"]
[null,null,null,null,null,null,null,null,null,null,null,86,"86",null,null,null,null,null,null,null,null,null,null,86,"86",null,null,null,null,null,"ABCDEFGHIJ 172",null,null,null,null,null,null,null,"29929"]
[null,null,null,null,null,null,null,null,null,null,null,-86,"-86",null,null,null,null,null,null,null,null,null,null,-86,"-86",null,null,null,null,null,"ABCDEFGHIJ 173",null,null,null,null,null,null,null,"30276"]
[null,null,null,null,null,null,null,null,null,null,null,87,"87",null,null,null,null,null,null,null,null,null,null,87,"87",null,null,null,null,null,"ABCDEFGHIJ 174",null,null,null,null,null,null,null,"30625"]
[null,null,null,null,null,null,null,null,null,null,null,-87,"-87",null,null,null,null,null,null,null,null,null,null,-87,"-87",null,null,null,null,null,"ABCDEFGHIJ 175",null,null,null,null,null,null,null,"30976"]
[null,null,null,null,null,null,null,null,null,null,null,88,"88",null,null,null,null,null,null,null,null,null,null,88,"88",null,null,null,null,null,"ABCDEFGHIJ 176",null,null,null,null,null,null,null,"31329"]
[null,null,null,null,null,null,null,null,null,null,null,-88,"-88",null,null,null,null,null,null,null,null,null,null,-88,"-88",null,null,null,null,null,"ABCDEFGHIJ 177",null,null,null,null,null,null,null,"31684"]
[null,null,null,null,null,null,null,null,null,null,null,89,"89",null,null,null,null,null,null,null,null,null,null,89,"89",null,null,null,null,null,"ABCDEFGHIJ 178",null,null,null,null,null,null,null,"32041"]
[null,null,null,null,null,null,null,null,null,null,null,-89,"-89",null,null,null,null,null,null,null,null,null,null,-89,"-89",null,null,null,null,null,"ABCDEFGHIJ 179",null,null,null,null,null,null,null,"32400"]
[null,null,null,null,null,null,null,null,null,null,null,90,"90",null,null,null,null,null,null,null,null,null,null,90,"90",null,null,null,null,null,"ABCDEFGHIJ 180",null,null,null,null,null,null,null,"32761"]
[null,null,null,null,null,null,null,null,null,null,null,-90,"-90",null,null,null,null,null,null,null,null,null,null,-90,"-90",null,null,null,null,null,"ABCDEFGHIJ 181",null,null,null,null,null,null,null,"33124"]
[null,null,null,null,null,null,null,null,null,null,null,91,"91",null,null,null,null,null,null,null,null,null,null,91,"91",null,null,null,null,null,"ABCDEFGHIJ 182",null,null,null,null,null,null,null,"33489"]
[null,null,null,null,null,null,null,null,null,null,null,-91,"-91",null,null,null,null,null,null,null,null,null,null,-91,"-91",null,null,null,null,null,"ABCDEFGHIJ 183",null,null,null,null,null,null,null,"33856"]
[null,null,null,null,null,null,null,null,null,null,null,92,"92",null,null,null,null,null,null,null,null,null,null,92,"92",null,null,null,null,null,"ABCDEFGHIJ 184",null,null,null,null,null,null,null,"34225"]
[null,null,null,null,null,null,null,null,null,null,null,-92,"-92",null,null,null,null,null,null,null,null,null,null,-92,"-92",null,null,null,null,null,"ABCDEFGHIJ 185",null,null,null,null,null,null,null,"34596"]
[null,null,null,null,null,null,null,null,null,null,null,93,"93",null,null,null,null,null,null,null,null,null,null,93,"93",null,null,null,null,null,"ABCDEFGHIJ 186",null,null,null,null,null,null,null,"34969"]
[null,null,null,null,null,null,null,null,null,null,null,-93,"-93",null,null,null,null,null,null,null,null,null,null,-93,"-93",null,null,null,null,null,"ABCDEFGHIJ 187",null,null,null,null,null,null,null,"35344"]
[null,null,null,null,null,null,null,null,null,null,null,94,"94",null,null,null,null,null,null,null,null,null,null,94,"94",null,null,null,null,null,"ABCDEFGHIJ 188",null,null,null,null,null,null,null,"35721"]
[null,null,null,null,null,null,null,null,null,null,null,-94,"-94",null,null,null,null,null,null,null,null,null,null,-94,"-94",null,null,null,null,null,"ABCDEFGHIJ 189",null,null,null,null,null,null,null,"36100"]
[null,null,null,null,null,null,null,null,null,null,null,95,"95",null,null,null,null,null,null,null,null,null,null,95,"95",null,null,null,null,null,"ABCDEFGHIJ 190",null,null,null,null,null,null,null,"36481"]
[null,null,null,null,null,null,null,null,null,null,null,-95,"-95",null,null,null,null,null,null,null,null,null,null,-95,"-95",null,null,null,null,null,"ABCDEFGHIJ 191",null,null,null,null,null,null,null,"36864"]
[null,null,null,null,null,null,null,null,null,null,null,96,"96",null,null,null,null,null,null,null,null,null,null,96,"96",null,null,null,null,null,"ABCDEFGHIJ 192",null,null,null,null,null,null,null,"37249"]
[null,null,null,null,null,null,null,null,null,null,null,-96,"-96",null,null,null,null,null,null,null,null,null,null,-96,"-96",null,null,null,null,null,"ABCDEFGHIJ 193",null,null,null,null,null,null,null,"37636"]
[null,null,null,null,null,null,null,null,null,null,null,97,"97",null,null,null,null,null,null,null,null,null,null,97,"97",null,null,null,null,null,"ABCDEFGHIJ 194",null,null,null,null,null,null,null,"38025"]
[null,null,null,null,null,null,null,null,null,null,null,-97,"-97",null,null,null,null,null,null,null,null,null,null,-97,"-97",null,null,null,null,null,"ABCDEFGHIJ 195",null,null,null,null,null,null,null,"38416"]
[null,null,null,null,null,null,null,null,null,null,null,98,"98",null,null,null,null,null,null,null,null,null,null,98,"98",null,null,null,null,null,"ABCDEFGHIJ 196",null,null,null,null,null,null,null,"38809"]
[null,null,null,null,null,null,null,null,null,null,null,-98,"-98",null,null,null,null,null,null,null,null,null,null,-98,"-98",null,null,null,null,null,"ABCDEFGHIJ 197",null,null,null,null,null,null,null,"39204"]
[null,null,null,null,null,null,null,null,null,null,null,99,"99",null,null,null,null,null,null,null,null,null,null,99,"99",null,null,null,null,null,"ABCDEFGHIJ 198",null,null,null,null,null,null,null,"39601"]
[null,null,null,null,null,null,null,null,null,null,null,-99,"-99",null,null,null,null,null,null,null,null,null,null,-99,"-99",null,null,null,null,null,"ABCDEFGHIJ 199",null,null,null,null,null,null,null,"40000"]
[null,null,null,null,null,null,null,null,null,null,null,null,null,null,null,null,null,null,null,null,null,null,null,null,null,null,null,null,null,null,"ABCDEFGHIJ 200",null,null,null,null,null,null,null,"40401"]
[null,null,null,null,null,null,null,null,null,null,null,null,null,null,null,null,null,null,null,null,null,null,null,null,null,null,null,null,null,null,"ABCDEFGHIJ 201",null,null,null,null,null,null,null,"40804"]
[null,null,null,null,null,null,null,null,null,null,null,null,null,null,null,null,null,null,null,null,null,null,null,null,null,null,null,null,null,null,"ABCDEFGHIJ 202",null,null,null,null,null,null,null,"41209"]
[null,null,null,null,null,null,null,null,null,null,null,null,null,null,null,null,null,null,null,null,null,null,null,null,null,null,null,null,null,null,"ABCDEFGHIJ 203",null,null,null,null,null,null,null,"41616"]
[null,null,null,null,null,null,null,null,null,null,null,null,null,null,null,null,null,null,null,null,null,null,null,null,null,null,null,null,null,null,"ABCDEFGHIJ 204",null,null,null,null,null,null,null,"42025"]
[null,null,null,null,null,null,null,null,null,null,null,null,null,null,null,null,null,null,null,null,null,null,null,null,null,null,null,null,null,null,"ABCDEFGHIJ 205",null,null,null,null,null,null,null,"42436"]
[null,null,null,null,null,null,null,null,null,null,null,null,null,null,null,null,null,null,null,null,null,null,null,null,null,null,null,null,null,null,"ABCDEFGHIJ 206",null,null,null,null,null,null,null,"42849"]
[null,null,null,null,null,null,null,null,null,null,null,null,null,null,null,null,null,null,null,null,null,null,null,null,null,null,null,null,null,null,"ABCDEFGHIJ 207",null,null,null,null,null,null,null,"43264"]
[null,null,null,null,null,null,null,null,null,null,null,null,null,null,null,null,null,null,null,null,null,null,null,null,null,null,null,null,null,null,"ABCDEFGHIJ 208",null,null,null,null,null,null,null,"43681"]
[null,null,null,null,null,null,null,null,null,null,null,null,null,null,null,null,null,null,null,null,null,null,null,null,null,null,null,null,null,null,"ABCDEFGHIJ 209",null,null,null,null,null,null,null,"44100"]
[null,null,null,null,null,null,null,null,null,null,null,null,null,null,null,null,null,null,null,null,null,null,null,null,null,null,null,null,null,null,"ABCDEFGHIJ 210",null,null,null,null,null,null,null,"44521"]
[null,null,null,null,null,null,null,null,null,null,null,null,null,null,null,null,null,null,null,null,null,null,null,null,null,null,null,null,null,null,"ABCDEFGHIJ 211",null,null,null,null,null,null,null,"44944"]
[null,null,null,null,null,null,null,null,null,null,null,null,null,null,null,null,null,null,null,null,null,null,null,null,null,null,null,null,null,null,"ABCDEFGHIJ 212",null,null,null,null,null,null,null,"45369"]
[null,null,null,null,null,null,null,null,null,null,null,null,null,null,null,null,null,null,null,null,null,null,null,null,null,null,null,null,null,null,"ABCDEFGHIJ 213",null,null,null,null,null,null,null,"45796"]
[null,null,null,null,null,null,null,null,null,null,null,null,null,null,null,null,null,null,null,null,null,null,null,null,null,null,null,null,null,null,"ABCDEFGHIJ 214",null,null,null,null,null,null,null,"46225"]
[null,null,null,null,null,null,null,null,null,null,null,null,null,null,null,null,null,null,null,null,null,null,null,null,null,null,null,null,null,null,"ABCDEFGHIJ 215",null,null,null,null,null,null,null,"46656"]
[null,null,null,null,null,null,null,null,null,null,null,null,null,null,null,null,null,null,null,null,null,null,null,null,null,null,null,null,null,null,"ABCDEFGHIJ 216",null,null,null,null,null,null,null,"47089"]
[null,null,null,null,null,null,null,null,null,null,null,null,null,null,null,null,null,null,null,null,null,null,null,null,null,null,null,null,null,null,"ABCDEFGHIJ 217",null,null,null,null,null,null,null,"47524"]
[null,null,null,null,null,null,null,null,null,null,null,null,null,null,null,null,null,null,null,null,null,null,null,null,null,null,null,null,null,null,"ABCDEFGHIJ 218",null,null,null,null,null,null,null,"47961"]
[null,null,null,null,null,null,null,null,null,null,null,null,null,null,null,null,null,null,null,null,null,null,null,null,null,null,null,null,null,null,"ABCDEFGHIJ 219",null,null,null,null,null,null,null,"48400"]
[null,null,null,null,null,null,null,null,null,null,null,null,null,null,null,null,null,null,null,null,null,null,null,null,null,null,null,null,null,null,"ABCDEFGHIJ 220",null,null,null,null,null,null,null,"48841"]
[null,null,null,null,null,null,null,null,null,null,null,null,null,null,null,null,null,null,null,null,null,null,null,null,null,null,null,null,null,null,"ABCDEFGHIJ 221",null,null,null,null,null,null,null,"49284"]
[null,null,null,null,null,null,null,null,null,null,null,null,null,null,null,null,null,null,null,null,null,null,null,null,null,null,null,null,null,null,"ABCDEFGHIJ 222",null,null,null,null,null,null,null,"49729"]
[null,null,null,null,null,null,null,null,null,null,null,null,null,null,null,null,null,null,null,null,null,null,null,null,null,null,null,null,null,null,"ABCDEFGHIJ 223",null,null,null,null,null,null,null,"50176"]
[null,null,null,null,null,null,null,null,null,null,null,null,null,null,null,null,null,null,null,null,null,null,null,null,null,null,null,null,null,null,"ABCDEFGHIJ 224",null,null,null,null,null,null,null,"50625"]
[null,null,null,null,null,null,null,null,null,null,null,null,null,null,null,null,null,null,null,null,null,null,null,null,null,null,null,null,null,null,"ABCDEFGHIJ 225",null,null,null,null,null,null,null,"51076"]
[null,null,null,null,null,null,null,null,null,null,null,null,null,null,null,null,null,null,null,null,null,null,null,null,null,null,null,null,null,null,"ABCDEFGHIJ 226",null,null,null,null,null,null,null,"51529"]
[null,null,null,null,null,null,null,null,null,null,null,null,null,null,null,null,null,null,null,null,null,null,null,null,null,null,null,null,null,null,"ABCDEFGHIJ 227",null,null,null,null,null,null,null,"51984"]
[null,null,null,null,null,null,null,null,null,null,null,null,null,null,null,null,null,null,null,null,null,null,null,null,null,null,null,null,null,null,"ABCDEFGHIJ 228",null,null,null,null,null,null,null,"52441"]
[null,null,null,null,null,null,null,null,null,null,null,null,null,null,null,null,null,null,null,null,null,null,null,null,null,null,null,null,null,null,"ABCDEFGHIJ 229",null,null,null,null,null,null,null,"52900"]
[null,null,null,null,null,null,null,null,null,null,null,null,null,null,null,null,null,null,null,null,null,null,null,null,null,null,null,null,null,null,"ABCDEFGHIJ 230",null,null,null,null,null,null,null,"53361"]
[null,null,null,null,null,null,null,null,null,null,null,null,null,null,null,null,null,null,null,null,null,null,null,null,null,null,null,null,null,null,"ABCDEFGHIJ 231",null,null,null,null,null,null,null,"53824"]
[null,null,null,null,null,null,null,null,null,null,null,null,null,null,null,null,null,null,null,null,null,null,null,null,null,null,null,null,null,null,"ABCDEFGHIJ 232",null,null,null,null,null,null,null,"54289"]
[null,null,null,null,null,null,null,null,null,null,null,null,null,null,null,null,null,null,null,null,null,null,null,null,null,null,null,null,null,null,"ABCDEFGHIJ 233",null,null,null,null,null,null,null,"54756"]
[null,null,null,null,null,null,null,null,null,null,null,null,null,null,null,null,null,null,null,null,null,null,null,null,null,null,null,null,null,null,"ABCDEFGHIJ 234",null,null,null,null,null,null,null,"55225"]
[null,null,null,null,null,null,null,null,null,null,null,null,null,null,null,null,null,null,null,null,null,null,null,null,null,null,null,null,null,null,"ABCDEFGHIJ 235",null,null,null,null,null,null,null,"55696"]
[null,null,null,null,null,null,null,null,null,null,null,null,null,null,null,null,null,null,null,null,null,null,null,null,null,null,null,null,null,null,"ABCDEFGHIJ 236",null,null,null,null,null,null,null,"56169"]
[null,null,null,null,null,null,null,null,null,null,null,null,null,null,null,null,null,null,null,null,null,null,null,null,null,null,null,null,null,null,"ABCDEFGHIJ 237",null,null,null,null,null,null,null,"56644"]
[null,null,null,null,null,null,null,null,null,null,null,null,null,null,null,null,null,null,null,null,null,null,null,null,null,null,null,null,null,null,"ABCDEFGHIJ 238",null,null,null,null,null,null,null,"57121"]
[null,null,null,null,null,null,null,null,null,null,null,null,null,null,null,null,null,null,null,null,null,null,null,null,null,null,null,null,null,null,"ABCDEFGHIJ 239",null,null,null,null,null,null,null,"57600"]
[null,null,null,null,null,null,null,null,null,null,null,null,null,null,null,null,null,null,null,null,null,null,null,null,null,null,null,null,null,null,"ABCDEFGHIJ 240",null,null,null,null,null,null,null,"58081"]
[null,null,null,null,null,null,null,null,null,null,null,null,null,null,null,null,null,null,null,null,null,null,null,null,null,null,null,null,null,null,"ABCDEFGHIJ 241",null,null,null,null,null,null,null,"58564"]
[null,null,null,null,null,null,null,null,null,null,null,null,null,null,null,null,null,null,null,null,null,null,null,null,null,null,null,null,null,null,"ABCDEFGHIJ 242",null,null,null,null,null,null,null,"59049"]
[null,null,null,null,null,null,null,null,null,null,null,null,null,null,null,null,null,null,null,null,null,null,null,null,null,null,null,null,null,null,"ABCDEFGHIJ 243",null,null,null,null,null,null,null,"59536"]
[null,null,null,null,null,null,null,null,null,null,null,null,null,null,null,null,null,null,null,null,null,null,null,null,null,null,null,null,null,null,"ABCDEFGHIJ 244",null,null,null,null,null,null,null,"60025"]
[null,null,null,null,null,null,null,null,null,null,null,null,null,null,null,null,null,null,null,null,null,null,null,null,null,null,null,null,null,null,"ABCDEFGHIJ 245",null,null,null,null,null,null,null,"60516"]
[null,null,null,null,null,null,null,null,null,null,null,null,null,null,null,null,null,null,null,null,null,null,null,null,null,null,null,null,null,null,"ABCDEFGHIJ 246",null,null,null,null,null,null,null,"61009"]
[null,null,null,null,null,null,null,null,null,null,null,null,null,null,null,null,null,null,null,null,null,null,null,null,null,null,null,null,null,null,"ABCDEFGHIJ 247",null,null,null,null,null,null,null,"61504"]
[null,null,null,null,null,null,null,null,null,null,null,null,null,null,null,null,null,null,null,null,null,null,null,null,null,null,null,null,null,null,"ABCDEFGHIJ 248",null,null,null,null,null,null,null,"62001"]
[null,null,null,null,null,null,null,null,null,null,null,null,null,null,null,null,null,null,null,null,null,null,null,null,null,null,null,null,null,null,"ABCDEFGHIJ 249",null,null,null,null,null,null,null,"62500"]
[null,null,null,null,null,null,null,null,null,null,null,null,null,null,null,null,null,null,null,null,null,null,null,null,null,null,null,null,null,null,"ABCDEFGHIJ 250",null,null,null,null,null,null,null,"63001"]
[null,null,null,null,null,null,null,null,null,null,null,null,null,null,null,null,null,null,null,null,null,null,null,null,null,null,null,null,null,null,"ABCDEFGHIJ 251",null,null,null,null,null,null,null,"63504"]
[null,null,null,null,null,null,null,null,null,null,null,null,null,null,null,null,null,null,null,null,null,null,null,null,null,null,null,null,null,null,"ABCDEFGHIJ 252",null,null,null,null,null,null,null,"64009"]
[null,null,null,null,null,null,null,null,null,null,null,null,null,null,null,null,null,null,null,null,null,null,null,null,null,null,null,null,null,null,"ABCDEFGHIJ 253",null,null,null,null,null,null,null,"64516"]
[null,null,null,null,null,null,null,null,null,null,null,null,null,null,null,null,null,null,null,null,null,null,null,null,null,null,null,null,null,null,"ABCDEFGHIJ 254"]
[null,null,null,null,null,null,null,null,null,null,null,null,null,null,null,null,null,null,null,null,null,null,null,null,null,null,null,null,null,null,"ABCDEFGHIJ 255"]

{"sheet":"ImportedListLimit","index":2,"n_rows":257,"n_cols":6,"rows_kept":257,"cut":false,"hidden":false,"merged":[]}
["Item 1",null,null,"ABCDEFGHIJ 1",null,"A 1"]
["Item 2",null,null,"ABCDEFGHIJ 2",null,"A 2"]
["Item 3",null,null,"ABCDEFGHIJ 3",null,"A 3"]
["Item 4",null,null,"ABCDEFGHIJ 4",null,"A 4"]
["Item 5",null,null,"ABCDEFGHIJ 5",null,"A 5"]
["Item 6",null,null,"ABCDEFGHIJ 6",null,"A 6"]
["Item 7",null,null,"ABCDEFGHIJ 7",null,"A 7"]
["Item 8",null,null,"ABCDEFGHIJ 8",null,"A 8"]
["Item 9",null,null,"ABCDEFGHIJ 9",null,"A 9"]
["Item 10",null,null,"ABCDEFGHIJ 10",null,"A 10"]
["Item 11",null,null,"ABCDEFGHIJ 11",null,"A 11"]
["Item 12",null,null,"ABCDEFGHIJ 12",null,"A 12"]
["Item 13",null,null,"ABCDEFGHIJ 13",null,"A 13"]
["Item 14",null,null,"ABCDEFGHIJ 14",null,"A 14"]
["Item 15",null,null,"ABCDEFGHIJ 15",null,"A 15"]
["Item 16",null,null,"ABCDEFGHIJ 16",null,"A 16"]
["Item 17",null,null,"ABCDEFGHIJ 17",null,"A 17"]
["Item 18",null,null,"ABCDEFGHIJ 18",null,"A 18"]
["Item 19",null,null,"ABCDEFGHIJ 19",null,"A 19"]
["Item 20",null,null,"ABCDEFGHIJ 20",null,"A 20"]
["Item 21",null,null,"ABCDEFGHIJ 21",null,"A 21"]
["Item 22",null,null,"ABCDEFGHIJ 22",null,"A 22"]
["Item 23",null,null,"ABCDEFGHIJ 23",null,"A 23"]
["Item 24",null,null,"ABCDEFGHIJ 24",null,"A 24"]
["Item 25",null,null,"ABCDEFGHIJ 25",null,"A 25"]
["Item 26",null,null,"ABCDEFGHIJ 26",null,"A 26"]
["Item 27",null,null,"ABCDEFGHIJ 27",null,"A 27"]
["Item 28",null,null,"ABCDEFGHIJ 28",null,"A 28"]
["Item 29",null,null,"ABCDEFGHIJ 29",null,"A 29"]
["Item 30",null,null,"ABCDEFGHIJ 30",null,"A 30"]
["Item 31",null,null,"ABCDEFGHIJ 31",null,"A 31"]
["Item 32",null,null,"ABCDEFGHIJ 32",null,"A 32"]
["Item 33",null,null,"ABCDEFGHIJ 33",null,"A 33"]
["Item 34",null,null,"ABCDEFGHIJ 34",null,"A 34"]
["Item 35",null,null,"ABCDEFGHIJ 35",null,"A 35"]
["Item 36",null,null,"ABCDEFGHIJ 36",null,"A 36"]
["Item 37",null,null,"ABCDEFGHIJ 37",null,"A 37"]
["Item 38",null,null,"ABCDEFGHIJ 38",null,"A 38"]
["Item 39",null,null,"ABCDEFGHIJ 39",null,"A 39"]
["Item 40",null,null,"ABCDEFGHIJ 40",null,"A 40"]
["Item 41",null,null,"ABCDEFGHIJ 41",null,"A 41"]
["Item 42",null,null,"ABCDEFGHIJ 42",null,"A 42"]
["Item 43",null,null,"ABCDEFGHIJ 43",null,"A 43"]
["Item 44",null,null,"ABCDEFGHIJ 44",null,"A 44"]
["Item 45",null,null,"ABCDEFGHIJ 45",null,"A 45"]
["Item 46",null,null,"ABCDEFGHIJ 46",null,"A 46"]
["Item 47",null,null,"ABCDEFGHIJ 47",null,"A 47"]
["Item 48",null,null,"ABCDEFGHIJ 48",null,"A 48"]
["Item 49",null,null,"ABCDEFGHIJ 49",null,"A 49"]
["Item 50",null,null,"ABCDEFGHIJ 50",null,"A 50"]
["Item 51",null,null,"ABCDEFGHIJ 51",null,"A 51"]
["Item 52",null,null,"ABCDEFGHIJ 52",null,"A 52"]
["Item 53",null,null,"ABCDEFGHIJ 53",null,"A 53"]
["Item 54",null,null,"ABCDEFGHIJ 54",null,"A 54"]
["Item 55",null,null,"ABCDEFGHIJ 55",null,"A 55"]
["Item 56",null,null,"ABCDEFGHIJ 56",null,"A 56"]
["Item 57",null,null,"ABCDEFGHIJ 57",null,"A 57"]
["Item 58",null,null,"ABCDEFGHIJ 58",null,"A 58"]
["Item 59",null,null,"ABCDEFGHIJ 59",null,"A 59"]
["Item 60",null,null,"ABCDEFGHIJ 60",null,"A 60"]
["Item 61",null,null,"ABCDEFGHIJ 61",null,"A 61"]
["Item 62",null,null,"ABCDEFGHIJ 62",null,"A 62"]
["Item 63",null,null,"ABCDEFGHIJ 63",null,"A 63"]
["Item 64",null,null,"ABCDEFGHIJ 64",null,"A 64"]
["Item 65",null,null,"ABCDEFGHIJ 65",null,"A 65"]
["Item 66",null,null,"ABCDEFGHIJ 66",null,"A 66"]
["Item 67",null,null,"ABCDEFGHIJ 67",null,"A 67"]
["Item 68",null,null,"ABCDEFGHIJ 68",null,"A 68"]
["Item 69",null,null,"ABCDEFGHIJ 69",null,"A 69"]
["Item 70",null,null,"ABCDEFGHIJ 70",null,"A 70"]
["Item 71",null,null,"ABCDEFGHIJ 71",null,"A 71"]
["Item 72",null,null,"ABCDEFGHIJ 72",null,"A 72"]
["Item 73",null,null,"ABCDEFGHIJ 73",null,"A 73"]
["Item 74",null,null,"ABCDEFGHIJ 74",null,"A 74"]
["Item 75",null,null,"ABCDEFGHIJ 75",null,"A 75"]
["Item 76",null,null,"ABCDEFGHIJ 76",null,"A 76"]
["Item 77",null,null,"ABCDEFGHIJ 77",null,"A 77"]
["Item 78",null,null,"ABCDEFGHIJ 78",null,"A 78"]
["Item 79",null,null,"ABCDEFGHIJ 79",null,"A 79"]
["Item 80",null,null,"ABCDEFGHIJ 80",null,"A 80"]
["Item 81",null,null,"ABCDEFGHIJ 81",null,"A 81"]
["Item 82",null,null,"ABCDEFGHIJ 82",null,"A 82"]
["Item 83",null,null,"ABCDEFGHIJ 83",null,"A 83"]
["Item 84",null,null,"ABCDEFGHIJ 84",null,"A 84"]
["Item 85",null,null,"ABCDEFGHIJ 85",null,"A 85"]
["Item 86",null,null,"ABCDEFGHIJ 86",null,"A 86"]
["Item 87",null,null,"ABCDEFGHIJ 87",null,"A 87"]
["Item 88",null,null,"ABCDEFGHIJ 88",null,"A 88"]
["Item 89",null,null,"ABCDEFGHIJ 89",null,"A 89"]
["Item 90",null,null,"ABCDEFGHIJ 90",null,"A 90"]
["Item 91",null,null,"ABCDEFGHIJ 91",null,"A 91"]
["Item 92",null,null,"ABCDEFGHIJ 92",null,"A 92"]
["Item 93",null,null,"ABCDEFGHIJ 93",null,"A 93"]
["Item 94",null,null,"ABCDEFGHIJ 94",null,"A 94"]
["Item 95",null,null,"ABCDEFGHIJ 95",null,"A 95"]
["Item 96",null,null,"ABCDEFGHIJ 96",null,"A 96"]
["Item 97",null,null,"ABCDEFGHIJ 97",null,"A 97"]
["Item 98",null,null,"ABCDEFGHIJ 98",null,"A 98"]
["Item 99",null,null,"ABCDEFGHIJ 99",null,"A 99"]
["Item 100",null,null,"ABCDEFGHIJ 100",null,"A 100"]
["Item 101",null,null,"ABCDEFGHIJ 101",null,"A 101"]
["Item 102",null,null,"ABCDEFGHIJ 102",null,"A 102"]
["Item 103",null,null,"ABCDEFGHIJ 103",null,"A 103"]
["Item 104",null,null,"ABCDEFGHIJ 104",null,"A 104"]
["Item 105",null,null,"ABCDEFGHIJ 105",null,"A 105"]
["Item 106",null,null,"ABCDEFGHIJ 106",null,"A 106"]
["Item 107",null,null,"ABCDEFGHIJ 107",null,"A 107"]
["Item 108",null,null,"ABCDEFGHIJ 108",null,"A 108"]
["Item 109",null,null,"ABCDEFGHIJ 109",null,"A 109"]
["Item 110",null,null,"ABCDEFGHIJ 110",null,"A 110"]
["Item 111",null,null,"ABCDEFGHIJ 111",null,"A 111"]
["Item 112",null,null,"ABCDEFGHIJ 112",null,"A 112"]
["Item 113",null,null,"ABCDEFGHIJ 113",null,"A 113"]
["Item 114",null,null,"ABCDEFGHIJ 114",null,"A 114"]
["Item 115",null,null,"ABCDEFGHIJ 115",null,"A 115"]
["Item 116",null,null,"ABCDEFGHIJ 116",null,"A 116"]
["Item 117",null,null,"ABCDEFGHIJ 117",null,"A 117"]
["Item 118",null,null,"ABCDEFGHIJ 118",null,"A 118"]
["Item 119",null,null,"ABCDEFGHIJ 119",null,"A 119"]
["Item 120",null,null,"ABCDEFGHIJ 120",null,"A 120"]
["Item 121",null,null,"ABCDEFGHIJ 121",null,"A 121"]
["Item 122",null,null,"ABCDEFGHIJ 122",null,"A 122"]
["Item 123",null,null,"ABCDEFGHIJ 123",null,"A 123"]
["Item 124",null,null,"ABCDEFGHIJ 124",null,"A 124"]
["Item 125",null,null,"ABCDEFGHIJ 125",null,"A 125"]
["Item 126",null,null,"ABCDEFGHIJ 126",null,"A 126"]
["Item 127",null,null,"ABCDEFGHIJ 127",null,"A 127"]
["Item 128",null,null,"ABCDEFGHIJ 128",null,"A 128"]
["Item 129",null,null,"ABCDEFGHIJ 129",null,"A 129"]
["Item 130",null,null,"ABCDEFGHIJ 130",null,"A 130"]
["Item 131",null,null,"ABCDEFGHIJ 131",null,"A 131"]
["Item 132",null,null,"ABCDEFGHIJ 132",null,"A 132"]
["Item 133",null,null,"ABCDEFGHIJ 133",null,"A 133"]
["Item 134",null,null,"ABCDEFGHIJ 134",null,"A 134"]
["Item 135",null,null,"ABCDEFGHIJ 135",null,"A 135"]
["Item 136",null,null,"ABCDEFGHIJ 136",null,"A 136"]
["Item 137",null,null,"ABCDEFGHIJ 137",null,"A 137"]
["Item 138",null,null,"ABCDEFGHIJ 138",null,"A 138"]
["Item 139",null,null,"ABCDEFGHIJ 139",null,"A 139"]
["Item 140",null,null,"ABCDEFGHIJ 140",null,"A 140"]
["Item 141",null,null,null,null,"A 141"]
["Item 142",null,null,null,null,"A 142"]
["Item 143",null,null,null,null,"A 143"]
["Item 144",null,null,null,null,"A 144"]
["Item 145",null,null,null,null,"A 145"]
["Item 146",null,null,null,null,"A 146"]
["Item 147",null,null,null,null,"A 147"]
["Item 148",null,null,null,null,"A 148"]
["Item 149",null,null,null,null,"A 149"]
["Item 150",null,null,null,null,"A 150"]
["Item 151",null,null,null,null,"A 151"]
["Item 152",null,null,null,null,"A 152"]
["Item 153",null,null,null,null,"A 153"]
["Item 154",null,null,null,null,"A 154"]
["Item 155",null,null,null,null,"A 155"]
["Item 156",null,null,null,null,"A 156"]
["Item 157",null,null,null,null,"A 157"]
["Item 158",null,null,null,null,"A 158"]
["Item 159",null,null,null,null,"A 159"]
["Item 160",null,null,null,null,"A 160"]
["Item 161",null,null,null,null,"A 161"]
["Item 162",null,null,null,null,"A 162"]
["Item 163",null,null,null,null,"A 163"]
["Item 164",null,null,null,null,"A 164"]
["Item 165",null,null,null,null,"A 165"]
["Item 166",null,null,null,null,"A 166"]
["Item 167",null,null,null,null,"A 167"]
["Item 168",null,null,null,null,"A 168"]
["Item 169",null,null,null,null,"A 169"]
["Item 170",null,null,null,null,"A 170"]
["Item 171",null,null,null,null,"A 171"]
["Item 172",null,null,null,null,"A 172"]
["Item 173",null,null,null,null,"A 173"]
["Item 174",null,null,null,null,"A 174"]
["Item 175",null,null,null,null,"A 175"]
["Item 176",null,null,null,null,"A 176"]
["Item 177",null,null,null,null,"A 177"]
["Item 178",null,null,null,null,"A 178"]
["Item 179",null,null,null,null,"A 179"]
["Item 180",null,null,null,null,"A 180"]
["Item 181",null,null,null,null,"A 181"]
["Item 182",null,null,null,null,"A 182"]
["Item 183",null,null,null,null,"A 183"]
["Item 184",null,null,null,null,"A 184"]
["Item 185",null,null,null,null,"A 185"]
["Item 186",null,null,null,null,"A 186"]
["Item 187",null,null,null,null,"A 187"]
["Item 188",null,null,null,null,"A 188"]
["Item 189",null,null,null,null,"A 189"]
["Item 190",null,null,null,null,"A 190"]
["Item 191",null,null,null,null,"A 191"]
["Item 192",null,null,null,null,"A 192"]
["Item 193",null,null,null,null,"A 193"]
["Item 194",null,null,null,null,"A 194"]
["Item 195",null,null,null,null,"A 195"]
["Item 196",null,null,null,null,"A 196"]
["Item 197",null,null,null,null,"A 197"]
["Item 198",null,null,null,null,"A 198"]
["Item 199",null,null,null,null,"A 199"]
["Item 200",null,null,null,null,"A 200"]
["Item 201",null,null,null,null,"A 201"]
["Item 202",null,null,null,null,"A 202"]
["Item 203",null,null,null,null,"A 203"]
["Item 204",null,null,null,null,"A 204"]
["Item 205",null,null,null,null,"A 205"]
["Item 206",null,null,null,null,"A 206"]
["Item 207",null,null,null,null,"A 207"]
["Item 208",null,null,null,null,"A 208"]
["Item 209",null,null,null,null,"A 209"]
["Item 210",null,null,null,null,"A 210"]
["Item 211",null,null,null,null,"A 211"]
["Item 212",null,null,null,null,"A 212"]
["Item 213",null,null,null,null,"A 213"]
["Item 214",null,null,null,null,"A 214"]
["Item 215",null,null,null,null,"A 215"]
["Item 216",null,null,null,null,"A 216"]
["Item 217",null,null,null,null,"A 217"]
["Item 218",null,null,null,null,"A 218"]
["Item 219",null,null,null,null,"A 219"]
["Item 220",null,null,null,null,"A 220"]
["Item 221",null,null,null,null,"A 221"]
["Item 222",null,null,null,null,"A 222"]
["Item 223",null,null,null,null,"A 223"]
["Item 224",null,null,null,null,"A 224"]
["Item 225",null,null,null,null,"A 225"]
["Item 226",null,null,null,null,"A 226"]
["Item 227",null,null,null,null,"A 227"]
["Item 228",null,null,null,null,"A 228"]
["Item 229",null,null,null,null,"A 229"]
["Item 230",null,null,null,null,"A 230"]
["Item 231",null,null,null,null,"A 231"]
["Item 232",null,null,null,null,"A 232"]
["Item 233",null,null,null,null,"A 233"]
["Item 234",null,null,null,null,"A 234"]
[null,null,null,null,null,"A 235"]
[{"$f":"LEN(_xlfn.TEXTJOIN(\",\",TRUE,A1:A234))","v":1997},null,null,{"$f":"LEN(_xlfn.TEXTJOIN(\",\",TRUE,D1:D234))","v":1991},null,"A 236"]
[null,null,null,null,null,"A 237"]
[{"$f":"SUM(LEN(A1:A234))","v":1764},null,null,{"$f":"SUM(LEN(D1:D234))","v":1852},null,"A 238"]
[null,null,null,null,null,"A 239"]
[null,null,null,null,null,"A 240"]
[null,null,null,null,null,"A 241"]
[null,null,null,null,null,"A 242"]
[null,null,null,null,null,"A 243"]
[null,null,null,null,null,"A 244"]
[null,null,null,null,null,"A 245"]
[null,null,null,null,null,"A 246"]
[null,null,null,null,null,"A 247"]
[null,null,null,null,null,"A 248"]
[null,null,null,null,null,"A 249"]
[null,null,null,null,null,"A 250"]
[null,null,null,null,null,"A 251"]
[null,null,null,null,null,"A 252"]
[null,null,null,null,null,"A 253"]
[null,null,null,null,null,"A 254"]
[null,null,null,null,null,"A 255"]
[]
[null,null,null,null,null,{"$f":"LEN(_xlfn.TEXTJOIN(\",\",TRUE,F1:F255))","v":1421}]

{"sheet":"AlternateSolution","index":3,"n_rows":256,"n_cols":40,"rows_kept":256,"cut":false,"hidden":false,"merged":[]}
["Name","# of Wins","Margin","Helper",null,null,null,null,null,null,null,"Proper Sequence",null,null,null,null,null,null,null,null,null,null,null,"Sequence",null,null,null,null,null,null,null,null,null,{"$f":"ROW()^2","v":1},{"$f":"LEN(AH1)","v":1},{"$f":"+AI1","v":1},null,null,"1",{"$f":"SUM(LEN(AM1:AM254))","v":1128}]
[{"$f":"CHAR(ROW(A65))","v":"A"},8,4,{"$f":"ABS(C2)","v":4},null,null,null,null,null,null,null,0,null,null,null,null,null,null,null,null,null,null,null,0,"0",null,null,1,null,null,"ABCDEFGHIJ 1",{"$f":"SUM(LEN(AE2:AE141))","v":1852},null,{"$f":"ROW()^2","v":4},{"$f":"LEN(AH2)","v":1},{"$f":"+AI2+AJ1","v":2},null,null,"4"]
["B",9,6,6,null,null,null,null,null,null,null,1,null,null,null,null,null,null,null,null,null,null,null,1,"1",null,null,3,null,null,"ABCDEFGHIJ 2",null,null,9,1,{"$f":"+AI3+AJ2","v":3},null,null,"9"]
["C",9,6,6,null,null,null,null,null,null,null,null,null,null,null,null,null,null,null,null,null,null,null,-1,"-1",null,null,5,null,null,"ABCDEFGHIJ 3",null,null,16,2,5,null,null,"16"]
["D",9,6,6,null,null,null,null,null,null,null,null,null,null,null,null,null,null,null,null,null,null,null,2,"2",null,null,7,null,null,"ABCDEFGHIJ 4",null,null,25,2,7,null,null,"25"]
["E",9,6,6,null,null,null,null,null,null,null,null,null,null,null,null,null,null,null,null,null,null,null,-2,"-2",null,null,9,null,null,"ABCDEFGHIJ 5",null,null,36,2,9,null,null,"36"]
["F",9,-6,6,null,null,null,null,null,null,null,null,null,null,null,null,null,null,null,null,null,null,null,3,"3",null,null,2,null,null,"ABCDEFGHIJ 6",null,null,49,2,11,null,null,"49"]
["G",7,8,8,null,null,null,null,null,null,null,null,null,null,null,null,null,null,null,null,null,null,null,-3,"-3",null,null,4,null,null,"ABCDEFGHIJ 7",null,null,64,2,13,null,null,"64"]
["H",8,-11,11,null,null,null,null,null,null,null,null,null,null,null,null,null,null,null,null,null,null,null,4,"4",null,null,6,null,null,"ABCDEFGHIJ 8",null,null,81,2,15,null,null,"81"]
["I",8,23,23,null,null,null,null,null,null,null,null,null,null,null,null,null,null,null,null,null,null,null,-4,"-4",null,null,8,null,null,"ABCDEFGHIJ 9",null,null,100,3,18,null,null,"100"]
["J",8,24,24,null,null,null,null,null,null,null,null,null,null,null,null,null,null,null,null,null,null,null,5,"5",null,null,10,null,null,"ABCDEFGHIJ 10",null,null,121,3,21,null,null,"121"]
["K",9,-27,27,null,null,null,null,null,null,null,null,null,null,null,null,null,null,null,null,null,null,null,-5,"-5",null,null,null,null,null,"ABCDEFGHIJ 11",null,null,144,3,24,null,null,"144"]
["L",8,29,29,null,null,null,null,null,null,null,null,null,null,null,null,null,null,null,null,null,null,null,6,"6",null,null,null,null,null,"ABCDEFGHIJ 12",null,null,169,3,27,null,null,"169"]
["M",7,-32,32,null,null,null,null,null,null,null,null,null,null,null,null,null,null,null,null,null,null,null,-6,"-6",null,null,null,null,null,"ABCDEFGHIJ 13",null,null,196,3,30,null,null,"196"]
["N",7,-40,40,null,null,null,null,null,null,null,null,null,null,null,null,null,null,null,null,null,null,null,7,"7",null,null,null,null,null,"ABCDEFGHIJ 14",null,null,225,3,33,null,null,"225"]
["O",8,42,42,null,null,null,null,null,null,null,null,null,null,null,null,null,null,null,null,null,null,null,-7,"-7",null,null,null,null,null,"ABCDEFGHIJ 15",null,null,256,3,36,null,null,"256"]
["P",9,43,43,null,null,null,null,null,null,null,null,null,null,null,null,null,null,null,null,null,null,null,8,"8",null,null,null,null,null,"ABCDEFGHIJ 16",null,null,289,3,39,null,null,"289"]
["Q",7,48,48,null,null,null,null,null,null,null,null,null,null,null,null,null,null,null,null,null,null,null,-8,"-8",null,null,null,null,null,"ABCDEFGHIJ 17",null,null,324,3,42,null,null,"324"]
["R",7,-54,54,null,null,null,null,null,null,null,null,null,null,null,null,null,null,null,null,null,null,null,9,"9",null,null,null,null,null,"ABCDEFGHIJ 18",null,null,361,3,45,null,null,"361"]
["S",9,-56,56,null,null,null,null,null,null,null,null,null,null,null,null,null,null,null,null,null,null,null,-9,"-9",null,null,null,null,null,"ABCDEFGHIJ 19",null,null,400,3,48,null,null,"400"]
["T",7,62,62,null,null,null,null,null,null,null,null,null,null,null,null,null,null,null,null,null,null,null,10,"10",null,null,null,null,null,"ABCDEFGHIJ 20",null,null,441,3,51,null,null,"441"]
["U",8,-63,63,null,null,null,null,null,null,null,null,null,null,null,null,null,null,null,null,null,null,null,-10,"-10",null,null,null,null,null,"ABCDEFGHIJ 21",null,null,484,3,54,null,null,"484"]
["V",9,65,65,null,null,null,null,null,null,null,null,null,null,null,null,null,null,null,null,null,null,null,11,"11",null,null,null,null,null,"ABCDEFGHIJ 22",null,null,529,3,57,null,null,"529"]
["W",7,-67,67,null,null,null,null,null,null,null,null,null,null,null,null,null,null,null,null,null,null,null,-11,"-11",null,null,null,null,null,"ABCDEFGHIJ 23",null,null,576,3,60,null,null,"576"]
["X",8,83,83,null,null,null,null,null,null,null,null,null,null,null,null,null,null,null,null,null,null,null,12,"12",null,null,null,null,null,"ABCDEFGHIJ 24",null,null,625,3,63,null,null,"625"]
["Y",8,85,85,null,null,null,null,null,null,null,null,null,null,null,null,null,null,null,null,null,null,null,-12,"-12",null,null,null,null,null,"ABCDEFGHIJ 25",null,null,676,3,66,null,null,"676"]
["Z",9,87,87,null,null,null,null,null,null,null,null,null,null,null,null,null,null,null,null,null,null,null,13,"13",null,null,null,null,null,"ABCDEFGHIJ 26",null,null,729,3,69,null,null,"729"]
["[",9,92,92,null,null,null,null,null,null,null,null,null,null,null,null,null,null,null,null,null,null,null,-13,"-13",null,null,null,null,null,"ABCDEFGHIJ 27",null,null,784,3,72,null,null,"784"]
[null,null,null,null,null,null,null,null,null,null,null,null,null,null,null,null,null,null,null,null,null,null,null,14,"14",null,null,null,null,null,"ABCDEFGHIJ 28",null,null,841,3,75,null,null,"841"]
[null,null,null,null,null,null,null,null,null,null,null,null,null,null,null,null,null,null,null,null,null,null,null,-14,"-14",null,null,null,null,null,"ABCDEFGHIJ 29",null,null,900,3,78,null,null,"900"]
[null,null,null,null,null,null,null,null,null,null,null,null,null,null,null,null,null,null,null,null,null,null,null,15,"15",null,null,null,null,null,"ABCDEFGHIJ 30",null,null,961,3,81,null,null,"961"]
[null,null,null,null,null,null,null,null,null,null,null,null,null,null,null,null,null,null,null,null,null,null,null,-15,"-15",null,null,null,null,null,"ABCDEFGHIJ 31",null,null,1024,4,85,null,null,"1024"]
[null,null,null,null,null,null,null,null,null,null,null,null,null,null,null,null,null,null,null,null,null,null,null,16,"16",null,null,null,null,null,"ABCDEFGHIJ 32",null,null,1089,4,89,null,null,"1089"]
[null,null,null,null,null,null,null,null,null,null,null,null,null,null,null,null,null,null,null,null,null,null,null,-16,"-16",null,null,null,null,null,"ABCDEFGHIJ 33",null,null,1156,4,93,null,null,"1156"]
[null,null,null,null,null,null,null,null,null,null,null,null,null,null,null,null,null,null,null,null,null,null,null,17,"17",null,null,null,null,null,"ABCDEFGHIJ 34",null,null,1225,4,97,null,null,"1225"]
[null,null,null,null,null,null,null,null,null,null,null,null,null,null,null,null,null,null,null,null,null,null,null,-17,"-17",null,null,null,null,null,"ABCDEFGHIJ 35",null,null,1296,4,101,null,null,"1296"]
[null,null,null,null,null,null,null,null,null,null,null,null,null,null,null,null,null,null,null,null,null,null,null,18,"18",null,null,null,null,null,"ABCDEFGHIJ 36",null,null,1369,4,105,null,null,"1369"]
[null,null,null,null,null,null,null,null,null,null,null,null,null,null,null,null,null,null,null,null,null,null,null,-18,"-18",null,null,null,null,null,"ABCDEFGHIJ 37",null,null,1444,4,109,null,null,"1444"]
[null,null,null,null,null,null,null,null,null,null,null,null,null,null,null,null,null,null,null,null,null,null,null,19,"19",null,null,null,null,null,"ABCDEFGHIJ 38",null,null,1521,4,113,null,null,"1521"]
[null,null,null,null,null,null,null,null,null,null,null,null,null,null,null,null,null,null,null,null,null,null,null,-19,"-19",null,null,null,null,null,"ABCDEFGHIJ 39",null,null,1600,4,117,null,null,"1600"]
[null,null,null,null,null,null,null,null,null,null,null,null,null,null,null,null,null,null,null,null,null,null,null,20,"20",null,null,null,null,null,"ABCDEFGHIJ 40",null,null,1681,4,121,null,null,"1681"]
[null,null,null,null,null,null,null,null,null,null,null,null,null,null,null,null,null,null,null,null,null,null,null,-20,"-20",null,null,null,null,null,"ABCDEFGHIJ 41",null,null,1764,4,125,null,null,"1764"]
[null,null,null,null,null,null,null,null,null,null,null,null,null,null,null,null,null,null,null,null,null,null,null,21,"21",null,null,null,null,null,"ABCDEFGHIJ 42",null,null,1849,4,129,null,null,"1849"]
[null,null,null,null,null,null,null,null,null,null,null,null,null,null,null,null,null,null,null,null,null,null,null,-21,"-21",null,null,null,null,null,"ABCDEFGHIJ 43",null,null,1936,4,133,null,null,"1936"]
[null,null,null,null,null,null,null,null,null,null,null,null,null,null,null,null,null,null,null,null,null,null,null,22,"22",null,null,null,null,null,"ABCDEFGHIJ 44",null,null,2025,4,137,null,null,"2025"]
[null,null,null,null,null,null,null,null,null,null,null,null,null,null,null,null,null,null,null,null,null,null,null,-22,"-22",null,null,null,null,null,"ABCDEFGHIJ 45",null,null,2116,4,141,null,null,"2116"]
[null,null,null,null,null,null,null,null,null,null,null,null,null,null,null,null,null,null,null,null,null,null,null,23,"23",null,null,null,null,null,"ABCDEFGHIJ 46",null,null,2209,4,145,null,null,"2209"]
[null,null,null,null,null,null,null,null,null,null,null,null,null,null,null,null,null,null,null,null,null,null,null,-23,"-23",null,null,null,null,null,"ABCDEFGHIJ 47",null,null,2304,4,149,null,null,"2304"]
[null,null,null,null,null,null,null,null,null,null,null,null,null,null,null,null,null,null,null,null,null,null,null,24,"24",null,null,null,null,null,"ABCDEFGHIJ 48",null,null,2401,4,153,null,null,"2401"]
[null,null,null,null,null,null,null,null,null,null,null,null,null,null,null,null,null,null,null,null,null,null,null,-24,"-24",null,null,null,null,null,"ABCDEFGHIJ 49",null,null,2500,4,157,null,null,"2500"]
[null,null,null,null,null,null,null,null,null,null,null,null,null,null,null,null,null,null,null,null,null,null,null,25,"25",null,null,null,null,null,"ABCDEFGHIJ 50",null,null,2601,4,161,null,null,"2601"]
[null,null,null,null,null,null,null,null,null,null,null,null,null,null,null,null,null,null,null,null,null,null,null,-25,"-25",null,null,null,null,null,"ABCDEFGHIJ 51",null,null,2704,4,165,null,null,"2704"]
[null,null,null,null,null,null,null,null,null,null,null,null,null,null,null,null,null,null,null,null,null,null,null,26,"26",null,null,null,null,null,"ABCDEFGHIJ 52",null,null,2809,4,169,null,null,"2809"]
[null,null,null,null,null,null,null,null,null,null,null,null,null,null,null,null,null,null,null,null,null,null,null,-26,"-26",null,null,null,null,null,"ABCDEFGHIJ 53",null,null,2916,4,173,null,null,"2916"]
[null,null,null,null,null,null,null,null,null,null,null,null,null,null,null,null,null,null,null,null,null,null,null,27,"27",null,null,null,null,null,"ABCDEFGHIJ 54",null,null,3025,4,177,null,null,"3025"]
[null,null,null,null,null,null,null,null,null,null,null,null,null,null,null,null,null,null,null,null,null,null,null,-27,"-27",null,null,null,null,null,"ABCDEFGHIJ 55",null,null,3136,4,181,null,null,"3136"]
[null,null,null,null,null,null,null,null,null,null,null,null,null,null,null,null,null,null,null,null,null,null,null,28,"28",null,null,null,null,null,"ABCDEFGHIJ 56",null,null,3249,4,185,null,null,"3249"]
[null,null,null,null,null,null,null,null,null,null,null,null,null,null,null,null,null,null,null,null,null,null,null,-28,"-28",null,null,null,null,null,"ABCDEFGHIJ 57",null,null,3364,4,189,null,null,"3364"]
[null,null,null,null,null,null,null,null,null,null,null,null,null,null,null,null,null,null,null,null,null,null,null,29,"29",null,null,null,null,null,"ABCDEFGHIJ 58",null,null,3481,4,193,null,null,"3481"]
[null,null,null,null,null,null,null,null,null,null,null,null,null,null,null,null,null,null,null,null,null,null,null,-29,"-29",null,null,null,null,null,"ABCDEFGHIJ 59",null,null,3600,4,197,null,null,"3600"]
[null,null,null,null,null,null,null,null,null,null,null,null,null,null,null,null,null,null,null,null,null,null,null,30,"30",null,null,null,null,null,"ABCDEFGHIJ 60",null,null,3721,4,201,null,null,"3721"]
[null,null,null,null,null,null,null,null,null,null,null,null,null,null,null,null,null,null,null,null,null,null,null,-30,"-30",null,null,null,null,null,"ABCDEFGHIJ 61",null,null,3844,4,205,null,null,"3844"]
[null,null,null,null,null,null,null,null,null,null,null,null,null,null,null,null,null,null,null,null,null,null,null,31,"31",null,null,null,null,null,"ABCDEFGHIJ 62",null,null,3969,4,209,null,null,"3969"]
[null,null,null,null,null,null,null,null,null,null,null,null,null,null,null,null,null,null,null,null,null,null,null,-31,"-31",null,null,null,null,null,"ABCDEFGHIJ 63",null,null,4096,4,213,null,null,"4096"]
[null,null,null,null,null,null,null,null,null,null,null,null,null,null,null,null,null,null,null,null,null,null,null,32,"32",null,null,null,null,null,"ABCDEFGHIJ 64",null,null,4225,4,217,null,null,"4225"]
[null,null,null,null,null,null,null,null,null,null,null,null,null,null,null,null,null,null,null,null,null,null,null,-32,"-32",null,null,null,null,null,"ABCDEFGHIJ 65",null,null,4356,{"$f":"LEN(AH66)","v":4},221,null,null,"4356"]
[null,null,null,null,null,null,null,null,null,null,null,null,null,null,null,null,null,null,null,null,null,null,null,33,"33",null,null,null,null,null,"ABCDEFGHIJ 66",null,null,{"$f":"ROW()^2","v":4489},4,{"$f":"+AI67+AJ66","v":225},null,null,"4489"]
[null,null,null,null,null,null,null,null,null,null,null,null,null,null,null,null,null,null,null,null,null,null,null,-33,"-33",null,null,null,null,null,"ABCDEFGHIJ 67",null,null,4624,4,229,null,null,"4624"]
[null,null,null,null,null,null,null,null,null,null,null,null,null,null,null,null,null,null,null,null,null,null,null,34,"34",null,null,null,null,null,"ABCDEFGHIJ 68",null,null,4761,4,233,null,null,"4761"]
[null,null,null,null,null,null,null,null,null,null,null,null,null,null,null,null,null,null,null,null,null,null,null,-34,"-34",null,null,null,null,null,"ABCDEFGHIJ 69",null,null,4900,4,237,null,null,"4900"]
[null,null,null,null,null,null,null,null,null,null,null,null,null,null,null,null,null,null,null,null,null,null,null,35,"35",null,null,null,null,null,"ABCDEFGHIJ 70",null,null,5041,4,241,null,null,"5041"]
[null,null,null,null,null,null,null,null,null,null,null,null,null,null,null,null,null,null,null,null,null,null,null,-35,"-35",null,null,null,null,null,"ABCDEFGHIJ 71",null,null,5184,4,245,null,null,"5184"]
[null,null,null,null,null,null,null,null,null,null,null,null,null,null,null,null,null,null,null,null,null,null,null,36,"36",null,null,null,null,null,"ABCDEFGHIJ 72",null,null,5329,4,249,null,null,"5329"]
[null,null,null,null,null,null,null,null,null,null,null,null,null,null,null,null,null,null,null,null,null,null,null,-36,"-36",null,null,null,null,null,"ABCDEFGHIJ 73",null,null,5476,4,253,null,null,"5476"]
[null,null,null,null,null,null,null,null,null,null,null,null,null,null,null,null,null,null,null,null,null,null,null,37,"37",null,null,null,null,null,"ABCDEFGHIJ 74",null,null,5625,4,257,null,null,"5625"]
[null,null,null,null,null,null,null,null,null,null,null,null,null,null,null,null,null,null,null,null,null,null,null,-37,"-37",null,null,null,null,null,"ABCDEFGHIJ 75",null,null,5776,4,261,null,null,"5776"]
[null,null,null,null,null,null,null,null,null,null,null,null,null,null,null,null,null,null,null,null,null,null,null,38,"38",null,null,null,null,null,"ABCDEFGHIJ 76",null,null,5929,4,265,null,null,"5929"]
[null,null,null,null,null,null,null,null,null,null,null,null,null,null,null,null,null,null,null,null,null,null,null,-38,"-38",null,null,null,null,null,"ABCDEFGHIJ 77",null,null,6084,4,269,null,null,"6084"]
[null,null,null,null,null,null,null,null,null,null,null,null,null,null,null,null,null,null,null,null,null,null,null,39,"39",null,null,null,null,null,"ABCDEFGHIJ 78",null,null,6241,4,273,null,null,"6241"]
[null,null,null,null,null,null,null,null,null,null,null,null,null,null,null,null,null,null,null,null,null,null,null,-39,"-39",null,null,null,null,null,"ABCDEFGHIJ 79",null,null,6400,4,277,null,null,"6400"]
[null,null,null,null,null,null,null,null,null,null,null,null,null,null,null,null,null,null,null,null,null,null,null,40,"40",null,null,null,null,null,"ABCDEFGHIJ 80",null,null,6561,4,281,null,null,"6561"]
[null,null,null,null,null,null,null,null,null,null,null,null,null,null,null,null,null,null,null,null,null,null,null,-40,"-40",null,null,null,null,null,"ABCDEFGHIJ 81",null,null,6724,4,285,null,null,"6724"]
[null,null,null,null,null,null,null,null,null,null,null,null,null,null,null,null,null,null,null,null,null,null,null,41,"41",null,null,null,null,null,"ABCDEFGHIJ 82",null,null,6889,4,289,null,null,"6889"]
[null,null,null,null,null,null,null,null,null,null,null,null,null,null,null,null,null,null,null,null,null,null,null,-41,"-41",null,null,null,null,null,"ABCDEFGHIJ 83",null,null,7056,4,293,null,null,"7056"]
[null,null,null,null,null,null,null,null,null,null,null,null,null,null,null,null,null,null,null,null,null,null,null,42,"42",null,null,null,null,null,"ABCDEFGHIJ 84",null,null,7225,4,297,null,null,"7225"]
[null,null,null,null,null,null,null,null,null,null,null,null,null,null,null,null,null,null,null,null,null,null,null,-42,"-42",null,null,null,null,null,"ABCDEFGHIJ 85",null,null,7396,4,301,null,null,"7396"]
[null,null,null,null,null,null,null,null,null,null,null,null,null,null,null,null,null,null,null,null,null,null,null,43,"43",null,null,null,null,null,"ABCDEFGHIJ 86",null,null,7569,4,305,null,null,"7569"]
[null,null,null,null,null,null,null,null,null,null,null,null,null,null,null,null,null,null,null,null,null,null,null,-43,"-43",null,null,null,null,null,"ABCDEFGHIJ 87",null,null,7744,4,309,null,null,"7744"]
[null,null,null,null,null,null,null,null,null,null,null,null,null,null,null,null,null,null,null,null,null,null,null,44,"44",null,null,null,null,null,"ABCDEFGHIJ 88",null,null,null,null,null,null,null,"7921"]
[null,null,null,null,null,null,null,null,null,null,null,null,null,null,null,null,null,null,null,null,null,null,null,-44,"-44",null,null,null,null,null,"ABCDEFGHIJ 89",null,1764,234,{"$f":"+AG90+AH90","v":1998},null,null,null,"8100"]
[null,null,null,null,null,null,null,null,null,null,null,null,null,null,null,null,null,null,null,null,null,null,null,45,"45",null,null,null,null,null,"ABCDEFGHIJ 90",null,1852,140,{"$f":"+AG91+AH91","v":1992},null,null,null,"8281"]
[null,null,null,null,null,null,null,null,null,null,null,null,null,null,null,null,null,null,null,null,null,null,null,-45,"-45",null,null,null,null,null,"ABCDEFGHIJ 91",null,null,null,null,null,null,null,"8464"]
[null,null,null,null,null,null,null,null,null,null,null,null,null,null,null,null,null,null,null,null,null,null,null,46,"46",null,null,null,null,null,"ABCDEFGHIJ 92",null,null,null,null,null,null,null,"8649"]
[null,null,null,null,null,null,null,null,null,null,null,null,null,null,null,null,null,null,null,null,null,null,null,-46,"-46",null,null,null,null,null,"ABCDEFGHIJ 93",null,null,null,null,null,null,null,"8836"]
[null,null,null,null,null,null,null,null,null,null,null,null,null,null,null,null,null,null,null,null,null,null,null,47,"47",null,null,null,null,null,"ABCDEFGHIJ 94",null,null,null,null,null,null,null,"9025"]
[null,null,null,null,null,null,null,null,null,null,null,null,null,null,null,null,null,null,null,null,null,null,null,-47,"-47",null,null,null,null,null,"ABCDEFGHIJ 95",null,null,null,null,null,null,null,"9216"]
[null,null,null,null,null,null,null,null,null,null,null,null,null,null,null,null,null,null,null,null,null,null,null,48,"48",null,null,null,null,null,"ABCDEFGHIJ 96",null,null,null,null,null,null,null,"9409"]
[null,null,null,null,null,null,null,null,null,null,null,null,null,null,null,null,null,null,null,null,null,null,null,-48,"-48",null,null,null,null,null,"ABCDEFGHIJ 97",null,null,null,null,null,null,null,"9604"]
[null,null,null,null,null,null,null,null,null,null,null,null,null,null,null,null,null,null,null,null,null,null,null,49,"49",null,null,null,null,null,"ABCDEFGHIJ 98",null,null,null,null,null,null,null,"9801"]
[null,null,null,null,null,null,null,null,null,null,null,null,null,null,null,null,null,null,null,null,null,null,null,-49,"-49",null,null,null,null,null,"ABCDEFGHIJ 99",null,null,null,null,null,null,null,"10000"]
[null,null,null,null,null,null,null,null,null,null,null,null,null,null,null,null,null,null,null,null,null,null,null,50,"50",null,null,null,null,null,"ABCDEFGHIJ 100",null,null,null,null,null,null,null,"10201"]
[null,null,null,null,null,null,null,null,null,null,null,null,null,null,null,null,null,null,null,null,null,null,null,-50,"-50",null,null,null,null,null,"ABCDEFGHIJ 101",null,null,null,null,null,null,null,"10404"]
[null,null,null,null,null,null,null,null,null,null,null,null,null,null,null,null,null,null,null,null,null,null,null,51,"51",null,null,null,null,null,"ABCDEFGHIJ 102",null,null,null,null,null,null,null,"10609"]
[null,null,null,null,null,null,null,null,null,null,null,null,null,null,null,null,null,null,null,null,null,null,null,-51,"-51",null,null,null,null,null,"ABCDEFGHIJ 103",null,null,null,null,null,null,null,"10816"]
[null,null,null,null,null,null,null,null,null,null,null,null,null,null,null,null,null,null,null,null,null,null,null,52,"52",null,null,null,null,null,"ABCDEFGHIJ 104",null,null,null,null,null,null,null,"11025"]
[null,null,null,null,null,null,null,null,null,null,null,null,null,null,null,null,null,null,null,null,null,null,null,-52,"-52",null,null,null,null,null,"ABCDEFGHIJ 105",null,null,null,null,null,null,null,"11236"]
[null,null,null,null,null,null,null,null,null,null,null,null,null,null,null,null,null,null,null,null,null,null,null,53,"53",null,null,null,null,null,"ABCDEFGHIJ 106",null,null,null,null,null,null,null,"11449"]
[null,null,null,null,null,null,null,null,null,null,null,null,null,null,null,null,null,null,null,null,null,null,null,-53,"-53",null,null,null,null,null,"ABCDEFGHIJ 107",null,null,null,null,null,null,null,"11664"]
[null,null,null,null,null,null,null,null,null,null,null,null,null,null,null,null,null,null,null,null,null,null,null,54,"54",null,null,null,null,null,"ABCDEFGHIJ 108",null,null,null,null,null,null,null,"11881"]
[null,null,null,null,null,null,null,null,null,null,null,null,null,null,null,null,null,null,null,null,null,null,null,-54,"-54",null,null,null,null,null,"ABCDEFGHIJ 109",null,null,null,null,null,null,null,"12100"]
[null,null,null,null,null,null,null,null,null,null,null,null,null,null,null,null,null,null,null,null,null,null,null,55,"55",null,null,null,null,null,"ABCDEFGHIJ 110",null,null,null,null,null,null,null,"12321"]
[null,null,null,null,null,null,null,null,null,null,null,null,null,null,null,null,null,null,null,null,null,null,null,-55,"-55",null,null,null,null,null,"ABCDEFGHIJ 111",null,null,null,null,null,null,null,"12544"]
[null,null,null,null,null,null,null,null,null,null,null,null,null,null,null,null,null,null,null,null,null,null,null,56,"56",null,null,null,null,null,"ABCDEFGHIJ 112",null,null,null,null,null,null,null,"12769"]
[null,null,null,null,null,null,null,null,null,null,null,null,null,null,null,null,null,null,null,null,null,null,null,-56,"-56",null,null,null,null,null,"ABCDEFGHIJ 113",null,null,null,null,null,null,null,"12996"]
[null,null,null,null,null,null,null,null,null,null,null,null,null,null,null,null,null,null,null,null,null,null,null,57,"57",null,null,null,null,null,"ABCDEFGHIJ 114",null,null,null,null,null,null,null,"13225"]
[null,null,null,null,null,null,null,null,null,null,null,null,null,null,null,null,null,null,null,null,null,null,null,-57,"-57",null,null,null,null,null,"ABCDEFGHIJ 115",null,null,null,null,null,null,null,"13456"]
[null,null,null,null,null,null,null,null,null,null,null,null,null,null,null,null,null,null,null,null,null,null,null,58,"58",null,null,null,null,null,"ABCDEFGHIJ 116",null,null,null,null,null,null,null,"13689"]
[null,null,null,null,null,null,null,null,null,null,null,null,null,null,null,null,null,null,null,null,null,null,null,-58,"-58",null,null,null,null,null,"ABCDEFGHIJ 117",null,null,null,null,null,null,null,"13924"]
[null,null,null,null,null,null,null,null,null,null,null,null,null,null,null,null,null,null,null,null,null,null,null,59,"59",null,null,null,null,null,"ABCDEFGHIJ 118",null,null,null,null,null,null,null,"14161"]
[null,null,null,null,null,null,null,null,null,null,null,null,null,null,null,null,null,null,null,null,null,null,null,-59,"-59",null,null,null,null,null,"ABCDEFGHIJ 119",null,null,null,null,null,null,null,"14400"]
[null,null,null,null,null,null,null,null,null,null,null,null,null,null,null,null,null,null,null,null,null,null,null,60,"60",null,null,null,null,null,"ABCDEFGHIJ 120",null,null,null,null,null,null,null,"14641"]
[null,null,null,null,null,null,null,null,null,null,null,null,null,null,null,null,null,null,null,null,null,null,null,-60,"-60",null,null,null,null,null,"ABCDEFGHIJ 121",null,null,null,null,null,null,null,"14884"]
[null,null,null,null,null,null,null,null,null,null,null,null,null,null,null,null,null,null,null,null,null,null,null,61,"61",null,null,null,null,null,"ABCDEFGHIJ 122",null,null,null,null,null,null,null,"15129"]
[null,null,null,null,null,null,null,null,null,null,null,null,null,null,null,null,null,null,null,null,null,null,null,-61,"-61",null,null,null,null,null,"ABCDEFGHIJ 123",null,null,null,null,null,null,null,"15376"]
[null,null,null,null,null,null,null,null,null,null,null,null,null,null,null,null,null,null,null,null,null,null,null,62,"62",null,null,null,null,null,"ABCDEFGHIJ 124",null,null,null,null,null,null,null,"15625"]
[null,null,null,null,null,null,null,null,null,null,null,null,null,null,null,null,null,null,null,null,null,null,null,-62,"-62",null,null,null,null,null,"ABCDEFGHIJ 125",null,null,null,null,null,null,null,"15876"]
[null,null,null,null,null,null,null,null,null,null,null,null,null,null,null,null,null,null,null,null,null,null,null,63,"63",null,null,null,null,null,"ABCDEFGHIJ 126",null,null,null,null,null,null,null,"16129"]
[null,null,null,null,null,null,null,null,null,null,null,null,null,null,null,null,null,null,null,null,null,null,null,-63,"-63",null,null,null,null,null,"ABCDEFGHIJ 127",null,null,null,null,null,null,null,"16384"]
[null,null,null,null,null,null,null,null,null,null,null,null,null,null,null,null,null,null,null,null,null,null,null,64,"64",null,null,null,null,null,"ABCDEFGHIJ 128",null,null,null,null,null,null,null,"16641"]
[null,null,null,null,null,null,null,null,null,null,null,null,null,null,null,null,null,null,null,null,null,null,null,-64,"-64",null,null,null,null,null,"ABCDEFGHIJ 129",null,null,null,null,null,null,null,"16900"]
[null,null,null,null,null,null,null,null,null,null,null,null,null,null,null,null,null,null,null,null,null,null,null,65,"65",null,null,null,null,null,"ABCDEFGHIJ 130",null,null,null,null,null,null,null,"17161"]
[null,null,null,null,null,null,null,null,null,null,null,null,null,null,null,null,null,null,null,null,null,null,null,-65,"-65",null,null,null,null,null,"ABCDEFGHIJ 131",null,null,null,null,null,null,null,"17424"]
[null,null,null,null,null,null,null,null,null,null,null,null,null,null,null,null,null,null,null,null,null,null,null,66,"66",null,null,null,null,null,"ABCDEFGHIJ 132",null,null,null,null,null,null,null,"17689"]
[null,null,null,null,null,null,null,null,null,null,null,null,null,null,null,null,null,null,null,null,null,null,null,-66,"-66",null,null,null,null,null,"ABCDEFGHIJ 133",null,null,null,null,null,null,null,"17956"]
[null,null,null,null,null,null,null,null,null,null,null,null,null,null,null,null,null,null,null,null,null,null,null,67,"67",null,null,null,null,null,"ABCDEFGHIJ 134",null,null,null,null,null,null,null,"18225"]
[null,null,null,null,null,null,null,null,null,null,null,null,null,null,null,null,null,null,null,null,null,null,null,-67,"-67",null,null,null,null,null,"ABCDEFGHIJ 135",null,null,null,null,null,null,null,"18496"]
[null,null,null,null,null,null,null,null,null,null,null,null,null,null,null,null,null,null,null,null,null,null,null,68,"68",null,null,null,null,null,"ABCDEFGHIJ 136",null,null,null,null,null,null,null,"18769"]
[null,null,null,null,null,null,null,null,null,null,null,null,null,null,null,null,null,null,null,null,null,null,null,-68,"-68",null,null,null,null,null,"ABCDEFGHIJ 137",null,null,null,null,null,null,null,"19044"]
[null,null,null,null,null,null,null,null,null,null,null,null,null,null,null,null,null,null,null,null,null,null,null,69,"69",null,null,null,null,null,"ABCDEFGHIJ 138",null,null,null,null,null,null,null,"19321"]
[null,null,null,null,null,null,null,null,null,null,null,null,null,null,null,null,null,null,null,null,null,null,null,-69,"-69",null,null,null,null,null,"ABCDEFGHIJ 139",null,null,null,null,null,null,null,"19600"]
[null,null,null,null,null,null,null,null,null,null,null,null,null,null,null,null,null,null,null,null,null,null,null,70,"70",null,null,null,null,null,"ABCDEFGHIJ 140",null,null,null,null,null,null,null,"19881"]
[null,null,null,null,null,null,null,null,null,null,null,null,null,null,null,null,null,null,null,null,null,null,null,-70,"-70",null,null,null,null,null,"ABCDEFGHIJ 141",null,null,null,null,null,null,null,"20164"]
[null,null,null,null,null,null,null,null,null,null,null,null,null,null,null,null,null,null,null,null,null,null,null,71,"71",null,null,null,null,null,"ABCDEFGHIJ 142",null,null,null,null,null,null,null,"20449"]
[null,null,null,null,null,null,null,null,null,null,null,null,null,null,null,null,null,null,null,null,null,null,null,-71,"-71",null,null,null,null,null,"ABCDEFGHIJ 143",null,null,null,null,null,null,null,"20736"]
[null,null,null,null,null,null,null,null,null,null,null,null,null,null,null,null,null,null,null,null,null,null,null,72,"72",null,null,null,null,null,"ABCDEFGHIJ 144",null,null,null,null,null,null,null,"21025"]
[null,null,null,null,null,null,null,null,null,null,null,null,null,null,null,null,null,null,null,null,null,null,null,-72,"-72",null,null,null,null,null,"ABCDEFGHIJ 145",null,null,null,null,null,null,null,"21316"]
[null,null,null,null,null,null,null,null,null,null,null,null,null,null,null,null,null,null,null,null,null,null,null,73,"73",null,null,null,null,null,"ABCDEFGHIJ 146",null,null,null,null,null,null,null,"21609"]
[null,null,null,null,null,null,null,null,null,null,null,null,null,null,null,null,null,null,null,null,null,null,null,-73,"-73",null,null,null,null,null,"ABCDEFGHIJ 147",null,null,null,null,null,null,null,"21904"]
[null,null,null,null,null,null,null,null,null,null,null,null,null,null,null,null,null,null,null,null,null,null,null,74,"74",null,null,null,null,null,"ABCDEFGHIJ 148",null,null,null,null,null,null,null,"22201"]
[null,null,null,null,null,null,null,null,null,null,null,null,null,null,null,null,null,null,null,null,null,null,null,-74,"-74",null,null,null,null,null,"ABCDEFGHIJ 149",null,null,null,null,null,null,null,"22500"]
[null,null,null,null,null,null,null,null,null,null,null,null,null,null,null,null,null,null,null,null,null,null,null,75,"75",null,null,null,null,null,"ABCDEFGHIJ 150",null,null,null,null,null,null,null,"22801"]
[null,null,null,null,null,null,null,null,null,null,null,null,null,null,null,null,null,null,null,null,null,null,null,-75,"-75",null,null,null,null,null,"ABCDEFGHIJ 151",null,null,null,null,null,null,null,"23104"]
[null,null,null,null,null,null,null,null,null,null,null,null,null,null,null,null,null,null,null,null,null,null,null,76,"76",null,null,null,null,null,"ABCDEFGHIJ 152",null,null,null,null,null,null,null,"23409"]
[null,null,null,null,null,null,null,null,null,null,null,null,null,null,null,null,null,null,null,null,null,null,null,-76,"-76",null,null,null,null,null,"ABCDEFGHIJ 153",null,null,null,null,null,null,null,"23716"]
[null,null,null,null,null,null,null,null,null,null,null,null,null,null,null,null,null,null,null,null,null,null,null,77,"77",null,null,null,null,null,"ABCDEFGHIJ 154",null,null,null,null,null,null,null,"24025"]
[null,null,null,null,null,null,null,null,null,null,null,null,null,null,null,null,null,null,null,null,null,null,null,-77,"-77",null,null,null,null,null,"ABCDEFGHIJ 155",null,null,null,null,null,null,null,"24336"]
[null,null,null,null,null,null,null,null,null,null,null,null,null,null,null,null,null,null,null,null,null,null,null,78,"78",null,null,null,null,null,"ABCDEFGHIJ 156",null,null,null,null,null,null,null,"24649"]
[null,null,null,null,null,null,null,null,null,null,null,null,null,null,null,null,null,null,null,null,null,null,null,-78,"-78",null,null,null,null,null,"ABCDEFGHIJ 157",null,null,null,null,null,null,null,"24964"]
[null,null,null,null,null,null,null,null,null,null,null,null,null,null,null,null,null,null,null,null,null,null,null,79,"79",null,null,null,null,null,"ABCDEFGHIJ 158",null,null,null,null,null,null,null,"25281"]
[null,null,null,null,null,null,null,null,null,null,null,null,null,null,null,null,null,null,null,null,null,null,null,-79,"-79",null,null,null,null,null,"ABCDEFGHIJ 159",null,null,null,null,null,null,null,"25600"]
[null,null,null,null,null,null,null,null,null,null,null,null,null,null,null,null,null,null,null,null,null,null,null,80,"80",null,null,null,null,null,"ABCDEFGHIJ 160",null,null,null,null,null,null,null,"25921"]
[null,null,null,null,null,null,null,null,null,null,null,null,null,null,null,null,null,null,null,null,null,null,null,-80,"-80",null,null,null,null,null,"ABCDEFGHIJ 161",null,null,null,null,null,null,null,"26244"]
[null,null,null,null,null,null,null,null,null,null,null,null,null,null,null,null,null,null,null,null,null,null,null,81,"81",null,null,null,null,null,"ABCDEFGHIJ 162",null,null,null,null,null,null,null,"26569"]
[null,null,null,null,null,null,null,null,null,null,null,null,null,null,null,null,null,null,null,null,null,null,null,-81,"-81",null,null,null,null,null,"ABCDEFGHIJ 163",null,null,null,null,null,null,null,"26896"]
[null,null,null,null,null,null,null,null,null,null,null,null,null,null,null,null,null,null,null,null,null,null,null,82,"82",null,null,null,null,null,"ABCDEFGHIJ 164",null,null,null,null,null,null,null,"27225"]
[null,null,null,null,null,null,null,null,null,null,null,null,null,null,null,null,null,null,null,null,null,null,null,-82,"-82",null,null,null,null,null,"ABCDEFGHIJ 165",null,null,null,null,null,null,null,"27556"]
[null,null,null,null,null,null,null,null,null,null,null,null,null,null,null,null,null,null,null,null,null,null,null,83,"83",null,null,null,null,null,"ABCDEFGHIJ 166",null,null,null,null,null,null,null,"27889"]
[null,null,null,null,null,null,null,null,null,null,null,null,null,null,null,null,null,null,null,null,null,null,null,-83,"-83",null,null,null,null,null,"ABCDEFGHIJ 167",null,null,null,null,null,null,null,"28224"]
[null,null,null,null,null,null,null,null,null,null,null,null,null,null,null,null,null,null,null,null,null,null,null,84,"84",null,null,null,null,null,"ABCDEFGHIJ 168",null,null,null,null,null,null,null,"28561"]
[null,null,null,null,null,null,null,null,null,null,null,null,null,null,null,null,null,null,null,null,null,null,null,-84,"-84",null,null,null,null,null,"ABCDEFGHIJ 169",null,null,null,null,null,null,null,"28900"]
[null,null,null,null,null,null,null,null,null,null,null,null,null,null,null,null,null,null,null,null,null,null,null,85,"85",null,null,null,null,null,"ABCDEFGHIJ 170",null,null,null,null,null,null,null,"29241"]
[null,null,null,null,null,null,null,null,null,null,null,null,null,null,null,null,null,null,null,null,null,null,null,-85,"-85",null,null,null,null,null,"ABCDEFGHIJ 171",null,null,null,null,null,null,null,"29584"]
[null,null,null,null,null,null,null,null,null,null,null,null,null,null,null,null,null,null,null,null,null,null,null,86,"86",null,null,null,null,null,"ABCDEFGHIJ 172",null,null,null,null,null,null,null,"29929"]
[null,null,null,null,null,null,null,null,null,null,null,null,null,null,null,null,null,null,null,null,null,null,null,-86,"-86",null,null,null,null,null,"ABCDEFGHIJ 173",null,null,null,null,null,null,null,"30276"]
[null,null,null,null,null,null,null,null,null,null,null,null,null,null,null,null,null,null,null,null,null,null,null,87,"87",null,null,null,null,null,"ABCDEFGHIJ 174",null,null,null,null,null,null,null,"30625"]
[null,null,null,null,null,null,null,null,null,null,null,null,null,null,null,null,null,null,null,null,null,null,null,-87,"-87",null,null,null,null,null,"ABCDEFGHIJ 175",null,null,null,null,null,null,null,"30976"]
[null,null,null,null,null,null,null,null,null,null,null,null,null,null,null,null,null,null,null,null,null,null,null,88,"88",null,null,null,null,null,"ABCDEFGHIJ 176",null,null,null,null,null,null,null,"31329"]
[null,null,null,null,null,null,null,null,null,null,null,null,null,null,null,null,null,null,null,null,null,null,null,-88,"-88",null,null,null,null,null,"ABCDEFGHIJ 177",null,null,null,null,null,null,null,"31684"]
[null,null,null,null,null,null,null,null,null,null,null,null,null,null,null,null,null,null,null,null,null,null,null,89,"89",null,null,null,null,null,"ABCDEFGHIJ 178",null,null,null,null,null,null,null,"32041"]
[null,null,null,null,null,null,null,null,null,null,null,null,null,null,null,null,null,null,null,null,null,null,null,-89,"-89",null,null,null,null,null,"ABCDEFGHIJ 179",null,null,null,null,null,null,null,"32400"]
[null,null,null,null,null,null,null,null,null,null,null,null,null,null,null,null,null,null,null,null,null,null,null,90,"90",null,null,null,null,null,"ABCDEFGHIJ 180",null,null,null,null,null,null,null,"32761"]
[null,null,null,null,null,null,null,null,null,null,null,null,null,null,null,null,null,null,null,null,null,null,null,-90,"-90",null,null,null,null,null,"ABCDEFGHIJ 181",null,null,null,null,null,null,null,"33124"]
[null,null,null,null,null,null,null,null,null,null,null,null,null,null,null,null,null,null,null,null,null,null,null,91,"91",null,null,null,null,null,"ABCDEFGHIJ 182",null,null,null,null,null,null,null,"33489"]
[null,null,null,null,null,null,null,null,null,null,null,null,null,null,null,null,null,null,null,null,null,null,null,-91,"-91",null,null,null,null,null,"ABCDEFGHIJ 183",null,null,null,null,null,null,null,"33856"]
[null,null,null,null,null,null,null,null,null,null,null,null,null,null,null,null,null,null,null,null,null,null,null,92,"92",null,null,null,null,null,"ABCDEFGHIJ 184",null,null,null,null,null,null,null,"34225"]
[null,null,null,null,null,null,null,null,null,null,null,null,null,null,null,null,null,null,null,null,null,null,null,-92,"-92",null,null,null,null,null,"ABCDEFGHIJ 185",null,null,null,null,null,null,null,"34596"]
[null,null,null,null,null,null,null,null,null,null,null,null,null,null,null,null,null,null,null,null,null,null,null,93,"93",null,null,null,null,null,"ABCDEFGHIJ 186",null,null,null,null,null,null,null,"34969"]
[null,null,null,null,null,null,null,null,null,null,null,null,null,null,null,null,null,null,null,null,null,null,null,-93,"-93",null,null,null,null,null,"ABCDEFGHIJ 187",null,null,null,null,null,null,null,"35344"]
[null,null,null,null,null,null,null,null,null,null,null,null,null,null,null,null,null,null,null,null,null,null,null,94,"94",null,null,null,null,null,"ABCDEFGHIJ 188",null,null,null,null,null,null,null,"35721"]
[null,null,null,null,null,null,null,null,null,null,null,null,null,null,null,null,null,null,null,null,null,null,null,-94,"-94",null,null,null,null,null,"ABCDEFGHIJ 189",null,null,null,null,null,null,null,"36100"]
[null,null,null,null,null,null,null,null,null,null,null,null,null,null,null,null,null,null,null,null,null,null,null,95,"95",null,null,null,null,null,"ABCDEFGHIJ 190",null,null,null,null,null,null,null,"36481"]
[null,null,null,null,null,null,null,null,null,null,null,null,null,null,null,null,null,null,null,null,null,null,null,-95,"-95",null,null,null,null,null,"ABCDEFGHIJ 191",null,null,null,null,null,null,null,"36864"]
[null,null,null,null,null,null,null,null,null,null,null,null,null,null,null,null,null,null,null,null,null,null,null,96,"96",null,null,null,null,null,"ABCDEFGHIJ 192",null,null,null,null,null,null,null,"37249"]
[null,null,null,null,null,null,null,null,null,null,null,null,null,null,null,null,null,null,null,null,null,null,null,-96,"-96",null,null,null,null,null,"ABCDEFGHIJ 193",null,null,null,null,null,null,null,"37636"]
[null,null,null,null,null,null,null,null,null,null,null,null,null,null,null,null,null,null,null,null,null,null,null,97,"97",null,null,null,null,null,"ABCDEFGHIJ 194",null,null,null,null,null,null,null,"38025"]
[null,null,null,null,null,null,null,null,null,null,null,null,null,null,null,null,null,null,null,null,null,null,null,-97,"-97",null,null,null,null,null,"ABCDEFGHIJ 195",null,null,null,null,null,null,null,"38416"]
[null,null,null,null,null,null,null,null,null,null,null,null,null,null,null,null,null,null,null,null,null,null,null,98,"98",null,null,null,null,null,"ABCDEFGHIJ 196",null,null,null,null,null,null,null,"38809"]
[null,null,null,null,null,null,null,null,null,null,null,null,null,null,null,null,null,null,null,null,null,null,null,-98,"-98",null,null,null,null,null,"ABCDEFGHIJ 197",null,null,null,null,null,null,null,"39204"]
[null,null,null,null,null,null,null,null,null,null,null,null,null,null,null,null,null,null,null,null,null,null,null,99,"99",null,null,null,null,null,"ABCDEFGHIJ 198",null,null,null,null,null,null,null,"39601"]
[null,null,null,null,null,null,null,null,null,null,null,null,null,null,null,null,null,null,null,null,null,null,null,-99,"-99",null,null,null,null,null,"ABCDEFGHIJ 199",null,null,null,null,null,null,null,"40000"]
[null,null,null,null,null,null,null,null,null,null,null,null,null,null,null,null,null,null,null,null,null,null,null,null,null,null,null,null,null,null,"ABCDEFGHIJ 200",null,null,null,null,null,null,null,"40401"]
[null,null,null,null,null,null,null,null,null,null,null,null,null,null,null,null,null,null,null,null,null,null,null,null,null,null,null,null,null,null,"ABCDEFGHIJ 201",null,null,null,null,null,null,null,"40804"]
[null,null,null,null,null,null,null,null,null,null,null,null,null,null,null,null,null,null,null,null,null,null,null,null,null,null,null,null,null,null,"ABCDEFGHIJ 202",null,null,null,null,null,null,null,"41209"]
[null,null,null,null,null,null,null,null,null,null,null,null,null,null,null,null,null,null,null,null,null,null,null,null,null,null,null,null,null,null,"ABCDEFGHIJ 203",null,null,null,null,null,null,null,"41616"]
[null,null,null,null,null,null,null,null,null,null,null,null,null,null,null,null,null,null,null,null,null,null,null,null,null,null,null,null,null,null,"ABCDEFGHIJ 204",null,null,null,null,null,null,null,"42025"]
[null,null,null,null,null,null,null,null,null,null,null,null,null,null,null,null,null,null,null,null,null,null,null,null,null,null,null,null,null,null,"ABCDEFGHIJ 205",null,null,null,null,null,null,null,"42436"]
[null,null,null,null,null,null,null,null,null,null,null,null,null,null,null,null,null,null,null,null,null,null,null,null,null,null,null,null,null,null,"ABCDEFGHIJ 206",null,null,null,null,null,null,null,"42849"]
[null,null,null,null,null,null,null,null,null,null,null,null,null,null,null,null,null,null,null,null,null,null,null,null,null,null,null,null,null,null,"ABCDEFGHIJ 207",null,null,null,null,null,null,null,"43264"]
[null,null,null,null,null,null,null,null,null,null,null,null,null,null,null,null,null,null,null,null,null,null,null,null,null,null,null,null,null,null,"ABCDEFGHIJ 208",null,null,null,null,null,null,null,"43681"]
[null,null,null,null,null,null,null,null,null,null,null,null,null,null,null,null,null,null,null,null,null,null,null,null,null,null,null,null,null,null,"ABCDEFGHIJ 209",null,null,null,null,null,null,null,"44100"]
[null,null,null,null,null,null,null,null,null,null,null,null,null,null,null,null,null,null,null,null,null,null,null,null,null,null,null,null,null,null,"ABCDEFGHIJ 210",null,null,null,null,null,null,null,"44521"]
[null,null,null,null,null,null,null,null,null,null,null,null,null,null,null,null,null,null,null,null,null,null,null,null,null,null,null,null,null,null,"ABCDEFGHIJ 211",null,null,null,null,null,null,null,"44944"]
[null,null,null,null,null,null,null,null,null,null,null,null,null,null,null,null,null,null,null,null,null,null,null,null,null,null,null,null,null,null,"ABCDEFGHIJ 212",null,null,null,null,null,null,null,"45369"]
[null,null,null,null,null,null,null,null,null,null,null,null,null,null,null,null,null,null,null,null,null,null,null,null,null,null,null,null,null,null,"ABCDEFGHIJ 213",null,null,null,null,null,null,null,"45796"]
[null,null,null,null,null,null,null,null,null,null,null,null,null,null,null,null,null,null,null,null,null,null,null,null,null,null,null,null,null,null,"ABCDEFGHIJ 214",null,null,null,null,null,null,null,"46225"]
[null,null,null,null,null,null,null,null,null,null,null,null,null,null,null,null,null,null,null,null,null,null,null,null,null,null,null,null,null,null,"ABCDEFGHIJ 215",null,null,null,null,null,null,null,"46656"]
[null,null,null,null,null,null,null,null,null,null,null,null,null,null,null,null,null,null,null,null,null,null,null,null,null,null,null,null,null,null,"ABCDEFGHIJ 216",null,null,null,null,null,null,null,"47089"]
[null,null,null,null,null,null,null,null,null,null,null,null,null,null,null,null,null,null,null,null,null,null,null,null,null,null,null,null,null,null,"ABCDEFGHIJ 217",null,null,null,null,null,null,null,"47524"]
[null,null,null,null,null,null,null,null,null,null,null,null,null,null,null,null,null,null,null,null,null,null,null,null,null,null,null,null,null,null,"ABCDEFGHIJ 218",null,null,null,null,null,null,null,"47961"]
[null,null,null,null,null,null,null,null,null,null,null,null,null,null,null,null,null,null,null,null,null,null,null,null,null,null,null,null,null,null,"ABCDEFGHIJ 219",null,null,null,null,null,null,null,"48400"]
[null,null,null,null,null,null,null,null,null,null,null,null,null,null,null,null,null,null,null,null,null,null,null,null,null,null,null,null,null,null,"ABCDEFGHIJ 220",null,null,null,null,null,null,null,"48841"]
[null,null,null,null,null,null,null,null,null,null,null,null,null,null,null,null,null,null,null,null,null,null,null,null,null,null,null,null,null,null,"ABCDEFGHIJ 221",null,null,null,null,null,null,null,"49284"]
[null,null,null,null,null,null,null,null,null,null,null,null,null,null,null,null,null,null,null,null,null,null,null,null,null,null,null,null,null,null,"ABCDEFGHIJ 222",null,null,null,null,null,null,null,"49729"]
[null,null,null,null,null,null,null,null,null,null,null,null,null,null,null,null,null,null,null,null,null,null,null,null,null,null,null,null,null,null,"ABCDEFGHIJ 223",null,null,null,null,null,null,null,"50176"]
[null,null,null,null,null,null,null,null,null,null,null,null,null,null,null,null,null,null,null,null,null,null,null,null,null,null,null,null,null,null,"ABCDEFGHIJ 224",null,null,null,null,null,null,null,"50625"]
[null,null,null,null,null,null,null,null,null,null,null,null,null,null,null,null,null,null,null,null,null,null,null,null,null,null,null,null,null,null,"ABCDEFGHIJ 225",null,null,null,null,null,null,null,"51076"]
[null,null,null,null,null,null,null,null,null,null,null,null,null,null,null,null,null,null,null,null,null,null,null,null,null,null,null,null,null,null,"ABCDEFGHIJ 226",null,null,null,null,null,null,null,"51529"]
[null,null,null,null,null,null,null,null,null,null,null,null,null,null,null,null,null,null,null,null,null,null,null,null,null,null,null,null,null,null,"ABCDEFGHIJ 227",null,null,null,null,null,null,null,"51984"]
[null,null,null,null,null,null,null,null,null,null,null,null,null,null,null,null,null,null,null,null,null,null,null,null,null,null,null,null,null,null,"ABCDEFGHIJ 228",null,null,null,null,null,null,null,"52441"]
[null,null,null,null,null,null,null,null,null,null,null,null,null,null,null,null,null,null,null,null,null,null,null,null,null,null,null,null,null,null,"ABCDEFGHIJ 229",null,null,null,null,null,null,null,"52900"]
[null,null,null,null,null,null,null,null,null,null,null,null,null,null,null,null,null,null,null,null,null,null,null,null,null,null,null,null,null,null,"ABCDEFGHIJ 230",null,null,null,null,null,null,null,"53361"]
[null,null,null,null,null,null,null,null,null,null,null,null,null,null,null,null,null,null,null,null,null,null,null,null,null,null,null,null,null,null,"ABCDEFGHIJ 231",null,null,null,null,null,null,null,"53824"]
[null,null,null,null,null,null,null,null,null,null,null,null,null,null,null,null,null,null,null,null,null,null,null,null,null,null,null,null,null,null,"ABCDEFGHIJ 232",null,null,null,null,null,null,null,"54289"]
[null,null,null,null,null,null,null,null,null,null,null,null,null,null,null,null,null,null,null,null,null,null,null,null,null,null,null,null,null,null,"ABCDEFGHIJ 233",null,null,null,null,null,null,null,"54756"]
[null,null,null,null,null,null,null,null,null,null,null,null,null,null,null,null,null,null,null,null,null,null,null,null,null,null,null,null,null,null,"ABCDEFGHIJ 234",null,null,null,null,null,null,null,"55225"]
[null,null,null,null,null,null,null,null,null,null,null,null,null,null,null,null,null,null,null,null,null,null,null,null,null,null,null,null,null,null,"ABCDEFGHIJ 235",null,null,null,null,null,null,null,"55696"]
[null,null,null,null,null,null,null,null,null,null,null,null,null,null,null,null,null,null,null,null,null,null,null,null,null,null,null,null,null,null,"ABCDEFGHIJ 236",null,null,null,null,null,null,null,"56169"]
[null,null,null,null,null,null,null,null,null,null,null,null,null,null,null,null,null,null,null,null,null,null,null,null,null,null,null,null,null,null,"ABCDEFGHIJ 237",null,null,null,null,null,null,null,"56644"]
[null,null,null,null,null,null,null,null,null,null,null,null,null,null,null,null,null,null,null,null,null,null,null,null,null,null,null,null,null,null,"ABCDEFGHIJ 238",null,null,null,null,null,null,null,"57121"]
[null,null,null,null,null,null,null,null,null,null,null,null,null,null,null,null,null,null,null,null,null,null,null,null,null,null,null,null,null,null,"ABCDEFGHIJ 239",null,null,null,null,null,null,null,"57600"]
[null,null,null,null,null,null,null,null,null,null,null,null,null,null,null,null,null,null,null,null,null,null,null,null,null,null,null,null,null,null,"ABCDEFGHIJ 240",null,null,null,null,null,null,null,"58081"]
[null,null,null,null,null,null,null,null,null,null,null,null,null,null,null,null,null,null,null,null,null,null,null,null,null,null,null,null,null,null,"ABCDEFGHIJ 241",null,null,null,null,null,null,null,"58564"]
[null,null,null,null,null,null,null,null,null,null,null,null,null,null,null,null,null,null,null,null,null,null,null,null,null,null,null,null,null,null,"ABCDEFGHIJ 242",null,null,null,null,null,null,null,"59049"]
[null,null,null,null,null,null,null,null,null,null,null,null,null,null,null,null,null,null,null,null,null,null,null,null,null,null,null,null,null,null,"ABCDEFGHIJ 243",null,null,null,null,null,null,null,"59536"]
[null,null,null,null,null,null,null,null,null,null,null,null,null,null,null,null,null,null,null,null,null,null,null,null,null,null,null,null,null,null,"ABCDEFGHIJ 244",null,null,null,null,null,null,null,"60025"]
[null,null,null,null,null,null,null,null,null,null,null,null,null,null,null,null,null,null,null,null,null,null,null,null,null,null,null,null,null,null,"ABCDEFGHIJ 245",null,null,null,null,null,null,null,"60516"]
[null,null,null,null,null,null,null,null,null,null,null,null,null,null,null,null,null,null,null,null,null,null,null,null,null,null,null,null,null,null,"ABCDEFGHIJ 246",null,null,null,null,null,null,null,"61009"]
[null,null,null,null,null,null,null,null,null,null,null,null,null,null,null,null,null,null,null,null,null,null,null,null,null,null,null,null,null,null,"ABCDEFGHIJ 247",null,null,null,null,null,null,null,"61504"]
[null,null,null,null,null,null,null,null,null,null,null,null,null,null,null,null,null,null,null,null,null,null,null,null,null,null,null,null,null,null,"ABCDEFGHIJ 248",null,null,null,null,null,null,null,"62001"]
[null,null,null,null,null,null,null,null,null,null,null,null,null,null,null,null,null,null,null,null,null,null,null,null,null,null,null,null,null,null,"ABCDEFGHIJ 249",null,null,null,null,null,null,null,"62500"]
[null,null,null,null,null,null,null,null,null,null,null,null,null,null,null,null,null,null,null,null,null,null,null,null,null,null,null,null,null,null,"ABCDEFGHIJ 250",null,null,null,null,null,null,null,"63001"]
[null,null,null,null,null,null,null,null,null,null,null,null,null,null,null,null,null,null,null,null,null,null,null,null,null,null,null,null,null,null,"ABCDEFGHIJ 251",null,null,null,null,null,null,null,"63504"]
[null,null,null,null,null,null,null,null,null,null,null,null,null,null,null,null,null,null,null,null,null,null,null,null,null,null,null,null,null,null,"ABCDEFGHIJ 252",null,null,null,null,null,null,null,"64009"]
[null,null,null,null,null,null,null,null,null,null,null,null,null,null,null,null,null,null,null,null,null,null,null,null,null,null,null,null,null,null,"ABCDEFGHIJ 253",null,null,null,null,null,null,null,"64516"]
[null,null,null,null,null,null,null,null,null,null,null,null,null,null,null,null,null,null,null,null,null,null,null,null,null,null,null,null,null,null,"ABCDEFGHIJ 254"]
[null,null,null,null,null,null,null,null,null,null,null,null,null,null,null,null,null,null,null,null,null,null,null,null,null,null,null,null,null,null,"ABCDEFGHIJ 255"]

{"sheet":"Wrap Up","index":4,"n_rows":11,"n_cols":2,"rows_kept":11,"cut":false,"hidden":false,"merged":[]}
["Topics in this Episode"]
[]
[null,"Don wants to sort by a custom list that is numeric!"]
[null,"Will this work? It seems to work!"]
[null,"But you can not import numeric cells to the custom list dialog box."]
[null,"So, try to type numbers into the Custom List dialog box…. You are struck with a foolish 255 character limit when typing."]
[null,"WTH is the limit?  254 items?  Aha - 254 items, but less than 2000 characters when you add the invisible comma between each item"]
[null,"Did some text math with =SUM(LEN()) +CtrlShift+Enter    and LEN(TEXTJOIN(\",\",True,Range))"]
[null,"Workaround with ABS for sorting in this particular case for Don"]
[]
[null,"But the best workaround… the thing that Don needs to do:"]